Body,Body Name,Date,Transaction Number,Invoice Number,Amount,Supplier Name,Supplier ID ,VAT Registration Number ,Expense Area,Expense Type,Expense Code,Purchase Order
http://statistics.data.gov.uk/id/local-authority/29UP,Tonbridge & Malling Borough Council,6/2/2021,0011042651/1,11042651, 45.00,The Knight Shop International,01738800,,Purchases,TIC Stock Account,K18AX000001002,110069046
http://statistics.data.gov.uk/id/local-authority/29UP,Tonbridge & Malling Borough Council,6/2/2021,0011042651/2,11042651, 52.00,The Knight Shop International,01738800,,Purchases,TIC Stock Account,K18AX000001002,110069046
http://statistics.data.gov.uk/id/local-authority/29UP,Tonbridge & Malling Borough Council,6/2/2021,0011042651/3,11042651, 99.80,The Knight Shop International,01738800,,Purchases,TIC Stock Account,K18AX000001002,110069046
http://statistics.data.gov.uk/id/local-authority/29UP,Tonbridge & Malling Borough Council,6/2/2021,0011042651/4,11042651, 180.00,The Knight Shop International,01738800,,Purchases,TIC Stock Account,K18AX000001002,110069046
http://statistics.data.gov.uk/id/local-authority/29UP,Tonbridge & Malling Borough Council,6/2/2021,0011042651/5,11042651, 125.00,The Knight Shop International,01738800,,Purchases,TIC Stock Account,K18AX000001002,110069046
http://statistics.data.gov.uk/id/local-authority/29UP,Tonbridge & Malling Borough Council,6/2/2021,0011042652/3,11042652, 374.77,Key Craft,01148600,,Purchases,TIC Stock Account,K18AX000001002,
http://statistics.data.gov.uk/id/local-authority/29UP,Tonbridge & Malling Borough Council,6/2/2021,0011042653/1,11042653, 118.00,Tonbridge Parish Church,01409700,,Purchases,TIC Stock Account,K18AX000001002,
http://statistics.data.gov.uk/id/local-authority/29UP,Tonbridge & Malling Borough Council,6/2/2021,0011042655/3,11042655, 125.00,A One Event Services,01776600,,Re-opening High Streets,Eco Dev & Reg Gen Bus Support,D52TDCV1948076,
http://statistics.data.gov.uk/id/local-authority/29UP,Tonbridge & Malling Borough Council,6/2/2021,0011042656/3,11042656, 1175.00,Cornerstones Barristers,01359100,,Legal Fees,Legal Sals&Overheads,D01ARDR0044002,
http://statistics.data.gov.uk/id/local-authority/29UP,Tonbridge & Malling Borough Council,6/2/2021,0011042657/3,11042657, 955.00,Cornerstones Barristers,01359100,,Legal Fees,Legal Sals&Overheads,D01ARDR0044002,
http://statistics.data.gov.uk/id/local-authority/29UP,Tonbridge & Malling Borough Council,6/2/2021,0011042658/3,11042658, 7908.32,Bevan Brittan LLP,01096600,,Legal Fees,Legal Sals&Overheads,D01ARDR0044002,
http://statistics.data.gov.uk/id/local-authority/29UP,Tonbridge & Malling Borough Council,6/2/2021,0012007987/1,12007987, 1800.00,Idox Software Ltd,00962400,,Software Hire & Support,Information Technology,D27KD000044059,410031935
http://statistics.data.gov.uk/id/local-authority/29UP,Tonbridge & Malling Borough Council,6/2/2021,0012007987/2,12007987, 2250.00,Idox Software Ltd,00962400,,Software Hire & Support,Information Technology,D27KD000044059,410031935
http://statistics.data.gov.uk/id/local-authority/29UP,Tonbridge & Malling Borough Council,6/2/2021,0012007987/3,12007987, 855.00,Idox Software Ltd,00962400,,Software Hire & Support,Information Technology,D27KD000044059,410031935
http://statistics.data.gov.uk/id/local-authority/29UP,Tonbridge & Malling Borough Council,6/2/2021,0012007988/1,12007988, 20000.00,Kent County Council,00167000,,Kent Connects,Information Technology,D27KD000044057,410031965
http://statistics.data.gov.uk/id/local-authority/29UP,Tonbridge & Malling Borough Council,6/2/2021,0012007989/1,12007989, 1124.25,Phoenix Software Ltd,00077400,755349015,Software Hire & Support,Information Technology,D27KD000044059,410031970
http://statistics.data.gov.uk/id/local-authority/29UP,Tonbridge & Malling Borough Council,6/2/2021,0021037169/1,21037169, 110.00,Bourne Amenity,00052100,,Maintenance of Grounds,Sports Grounds,B13ET000020402,210056231
http://statistics.data.gov.uk/id/local-authority/29UP,Tonbridge & Malling Borough Council,6/2/2021,0021037170/1,21037170, 46.00,South East Water Ltd,01330300,,Maintenance of Grounds,Leybourne Lakes Country Park,B22LK000020402,210056213
http://statistics.data.gov.uk/id/local-authority/29UP,Tonbridge & Malling Borough Council,6/2/2021,0021037171/1,21037171, 602.80,Wrotham Traders,01124900,,Borough Christmas Lighting,Eco Dev & Reg Boro Chris Light,D52TE000047014,
http://statistics.data.gov.uk/id/local-authority/29UP,Tonbridge & Malling Borough Council,6/2/2021,0021037172/1,21037172, 763.71,Landscape Services Ltd,00057600,,Grounds Maintenance Contract,Cemetery,B26MP000050103,
http://statistics.data.gov.uk/id/local-authority/29UP,Tonbridge & Malling Borough Council,6/2/2021,0021037173/3,21037173, 103.07,B&Q/Screwfix Direct,00141300,,Maintenance of Grounds,Haysden Country Park,B22LC000020402,
http://statistics.data.gov.uk/id/local-authority/29UP,Tonbridge & Malling Borough Council,6/2/2021,0021037174/1,21037174, 480.00,Twig Trading Ltd,01602200,,Maintenance of Grounds,Leybourne Lakes Country Park,B22LK000020402,210056279
http://statistics.data.gov.uk/id/local-authority/29UP,Tonbridge & Malling Borough Council,6/2/2021,0021037175/1,21037175, 20341.80,Landscape Services Ltd,00057600,,Grounds Maintenance Contract,Sports Grounds,B13ET000050103,
http://statistics.data.gov.uk/id/local-authority/29UP,Tonbridge & Malling Borough Council,6/2/2021,0021037175/10,21037175, 149.11,Landscape Services Ltd,00057600,,Grounds Maintenance Contract,Churchyards St Stephens,B28MY000050103,
http://statistics.data.gov.uk/id/local-authority/29UP,Tonbridge & Malling Borough Council,6/2/2021,0021037175/11,21037175, 164.81,Landscape Services Ltd,00057600,,Grounds Maintenance Contract,Grounds,D21FF000050103,
http://statistics.data.gov.uk/id/local-authority/29UP,Tonbridge & Malling Borough Council,6/2/2021,0021037175/12,21037175, 312.58,Landscape Services Ltd,00057600,,Maintenance of Grounds,Parking Off-Street,E10HA000020402,
http://statistics.data.gov.uk/id/local-authority/29UP,Tonbridge & Malling Borough Council,6/2/2021,0021037175/13,21037175, 980.27,Landscape Services Ltd,00057600,,Maintenance of Grounds,Parking Off-Street,E10HAE00120402,
http://statistics.data.gov.uk/id/local-authority/29UP,Tonbridge & Malling Borough Council,6/2/2021,0021037175/14,21037175, 93.08,Landscape Services Ltd,00057600,,Maintenance of Grounds,Parking Off-Street,E10HAE00220402,
http://statistics.data.gov.uk/id/local-authority/29UP,Tonbridge & Malling Borough Council,6/2/2021,0021037175/15,21037175, 84.41,Landscape Services Ltd,00057600,,Maintenance of Grounds,Parking Off-Street,E10HAE00320402,
http://statistics.data.gov.uk/id/local-authority/29UP,Tonbridge & Malling Borough Council,6/2/2021,0021037175/16,21037175, 21.05,Landscape Services Ltd,00057600,,Maintenance of Grounds,Parking Off-Street,E10HAE00420402,
http://statistics.data.gov.uk/id/local-authority/29UP,Tonbridge & Malling Borough Council,6/2/2021,0021037175/17,21037175, 0.54,Landscape Services Ltd,00057600,,Maintenance of Grounds,Parking Off-Street,E10HAE00520402,
http://statistics.data.gov.uk/id/local-authority/29UP,Tonbridge & Malling Borough Council,6/2/2021,0021037175/18,21037175, 58.93,Landscape Services Ltd,00057600,,Maintenance of Grounds,Parking Off-Street,E10HAE00620402,
http://statistics.data.gov.uk/id/local-authority/29UP,Tonbridge & Malling Borough Council,6/2/2021,0021037175/19,21037175, 137.58,Landscape Services Ltd,00057600,,Maintenance of Grounds,Parking Off-Street,E10HAE01020402,
http://statistics.data.gov.uk/id/local-authority/29UP,Tonbridge & Malling Borough Council,6/2/2021,0021037175/2,21037175, 7076.24,Landscape Services Ltd,00057600,,Grounds Maintenance Contract,Tonbridge Castle Grounds,B22LB000050103,
http://statistics.data.gov.uk/id/local-authority/29UP,Tonbridge & Malling Borough Council,6/2/2021,0021037175/20,21037175, 3.05,Landscape Services Ltd,00057600,,Maintenance of Grounds,Parking Off-Street,E10HAE01220402,
http://statistics.data.gov.uk/id/local-authority/29UP,Tonbridge & Malling Borough Council,6/2/2021,0021037175/21,21037175, 6.73,Landscape Services Ltd,00057600,,Maintenance of Grounds,Parking Off-Street,E10HAE01320402,
http://statistics.data.gov.uk/id/local-authority/29UP,Tonbridge & Malling Borough Council,6/2/2021,0021037175/22,21037175, 27.99,Landscape Services Ltd,00057600,,Maintenance of Grounds,Parking Off-Street,E10HAE01520402,
http://statistics.data.gov.uk/id/local-authority/29UP,Tonbridge & Malling Borough Council,6/2/2021,0021037175/23,21037175, 54.69,Landscape Services Ltd,00057600,,Maintenance of Grounds,Parking Off-Street,E10HAE01620402,
http://statistics.data.gov.uk/id/local-authority/29UP,Tonbridge & Malling Borough Council,6/2/2021,0021037175/24,21037175, 13.65,Landscape Services Ltd,00057600,,Maintenance of Grounds,Parking Off-Street,E10HAE02120402,
http://statistics.data.gov.uk/id/local-authority/29UP,Tonbridge & Malling Borough Council,6/2/2021,0021037175/25,21037175, 21.74,Landscape Services Ltd,00057600,,Maintenance of Grounds,Parking Off-Street,E10HAE02320402,
http://statistics.data.gov.uk/id/local-authority/29UP,Tonbridge & Malling Borough Council,6/2/2021,0021037175/26,21037175, 83.33,Landscape Services Ltd,00057600,,Maintenance of Grounds,Parking Off-Street,E10HAE02820402,
http://statistics.data.gov.uk/id/local-authority/29UP,Tonbridge & Malling Borough Council,6/2/2021,0021037175/27,21037175, 22.56,Landscape Services Ltd,00057600,,Maintenance of Grounds,Parking Off-Street,E10HAE04020402,
http://statistics.data.gov.uk/id/local-authority/29UP,Tonbridge & Malling Borough Council,6/2/2021,0021037175/28,21037175, 74.40,Landscape Services Ltd,00057600,,Maintenance of Grounds,Parking Off-Street,E10HAE04520402,
http://statistics.data.gov.uk/id/local-authority/29UP,Tonbridge & Malling Borough Council,6/2/2021,0021037175/3,21037175, 53.86,Landscape Services Ltd,00057600,,Trade Refuse Charges,Haysden Country Park,B22LC000044008,
http://statistics.data.gov.uk/id/local-authority/29UP,Tonbridge & Malling Borough Council,6/2/2021,0021037175/4,21037175, 462.07,Landscape Services Ltd,00057600,,Litter Collection,Haysden Country Park,B22LC000044061,
http://statistics.data.gov.uk/id/local-authority/29UP,Tonbridge & Malling Borough Council,6/2/2021,0021037175/5,21037175, 1600.71,Landscape Services Ltd,00057600,,Grounds Maintenance Contract,Haysden Country Park,B22LC000050103,
http://statistics.data.gov.uk/id/local-authority/29UP,Tonbridge & Malling Borough Council,6/2/2021,0021037175/6,21037175, 554.05,Landscape Services Ltd,00057600,,Grounds Maintenance Contract,Haysden Country Park,B22LC000050103,
http://statistics.data.gov.uk/id/local-authority/29UP,Tonbridge & Malling Borough Council,6/2/2021,0021037175/7,21037175, 11232.13,Landscape Services Ltd,00057600,,Grounds Maintenance Contract,Open Spaces & Amenity Areas,B22LE000050103,
http://statistics.data.gov.uk/id/local-authority/29UP,Tonbridge & Malling Borough Council,6/2/2021,0021037175/8,21037175, 4341.07,Landscape Services Ltd,00057600,,Grounds Maintenance Contract,Cemetery,B26MP000050103,
http://statistics.data.gov.uk/id/local-authority/29UP,Tonbridge & Malling Borough Council,6/2/2021,0021037175/9,21037175, 205.04,Landscape Services Ltd,00057600,,Grounds Maintenance Contract,Churchyards St Peter & St Paul,B28MX000050103,
http://statistics.data.gov.uk/id/local-authority/29UP,Tonbridge & Malling Borough Council,6/2/2021,0021037176/1,21037176, 6.00,Peabody South East LTD,01680900,,Other Expenses,Disabled Facilities Grant Mand,P03AC000009908,
http://statistics.data.gov.uk/id/local-authority/29UP,Tonbridge & Malling Borough Council,6/2/2021,0022025465/1,22025465, 85.88,Peoplesafe -  Skyguard Ltd,01779900,,Health General,Env Hlth & Hsg Sals&Overheads,D01AV000044049,220003107
http://statistics.data.gov.uk/id/local-authority/29UP,Tonbridge & Malling Borough Council,6/2/2021,0022025466/3,22025466, 602.25,KH Recruitment Ltd,01738900,,Temporary Staff,St Scene & Leis Sals&Overheads,D01AGDG3011300,
http://statistics.data.gov.uk/id/local-authority/29UP,Tonbridge & Malling Borough Council,6/2/2021,0022025467/1,22025467, 3500.00,Ashford Borough Council,00005800,,Support for External Agencies,Housing Strategy,C12FB000047022,220003084
http://statistics.data.gov.uk/id/local-authority/29UP,Tonbridge & Malling Borough Council,6/2/2021,0022025468/3,22025468, 740.00,G2 Recruitment Solutions,01786000,,Temporary Staff,Env Hlth & Hsg Sals&Overheads,D01AVDV0711300,
http://statistics.data.gov.uk/id/local-authority/29UP,Tonbridge & Malling Borough Council,6/2/2021,0022025469/1,22025469, 336.00,DM Marketing Communications,01742000,,Publicity & Promotion,Dry Recycling,H34SRZ99944217,220003109
http://statistics.data.gov.uk/id/local-authority/29UP,Tonbridge & Malling Borough Council,6/2/2021,0022025470/1,22025470, 16393.65,Consultants in Care Ltd,01764200,,Temporary Accommodation,Homelessness,C01AA000044051,
http://statistics.data.gov.uk/id/local-authority/29UP,Tonbridge & Malling Borough Council,6/2/2021,0031017956/1,31017956, 125.00,KCS,00054200,,Purchases,Civil Contingencies,D33NA000040101,310042652
http://statistics.data.gov.uk/id/local-authority/29UP,Tonbridge & Malling Borough Council,6/2/2021,0031017957/3,31017957, 134.43,Npower Ltd,01675800,,Electricity,Parking Off-Street,E10HA000021002,
http://statistics.data.gov.uk/id/local-authority/29UP,Tonbridge & Malling Borough Council,6/2/2021,0031017958/3,31017958, 54.66,Npower Ltd,01675800,,Electricity,Parking Off-Street,E10HA000021002,
http://statistics.data.gov.uk/id/local-authority/29UP,Tonbridge & Malling Borough Council,6/2/2021,0031017959/3,31017959, 28.88,Npower Ltd,01675800,,Electricity,Parking Off-Street,E10HA000021002,
http://statistics.data.gov.uk/id/local-authority/29UP,Tonbridge & Malling Borough Council,6/2/2021,0031017960/1,31017960, 720.00,Wellden Land Surveys,01410600,,Premises Repairs & Maintenance,Parking Off-Street,E10HAE01920601,310042667
http://statistics.data.gov.uk/id/local-authority/29UP,Tonbridge & Malling Borough Council,6/2/2021,0032009124/1,32009124, 540.00,G2 Recruitment Solutions,01786000,,Temporary Staff,Planning Sals&Overheads,D01AJDJ0111300,320003308
http://statistics.data.gov.uk/id/local-authority/29UP,Tonbridge & Malling Borough Council,6/2/2021,0041033098/1,41033098, 823.68,DG Consultancy,01617000,,Temporary Staff,Finance Sals&Overheads,D01AFDF0811300,410031726
http://statistics.data.gov.uk/id/local-authority/29UP,Tonbridge & Malling Borough Council,6/2/2021,0041033098/2,41033098, 428.91,DG Consultancy,01617000,,Temporary Staff,Finance Sals&Overheads,D01AFDF0811300,410031726
http://statistics.data.gov.uk/id/local-authority/29UP,Tonbridge & Malling Borough Council,6/2/2021,0041033098/3,41033098, 309.22,DG Consultancy,01617000,,Temporary Staff,Finance Sals&Overheads,D01AFDF0811300,410031726
http://statistics.data.gov.uk/id/local-authority/29UP,Tonbridge & Malling Borough Council,6/2/2021,0041033098/4,41033098, 278.19,DG Consultancy,01617000,,Temporary Staff,Finance Sals&Overheads,D01AFDF0811300,410031726
http://statistics.data.gov.uk/id/local-authority/29UP,Tonbridge & Malling Borough Council,6/2/2021,0041033099/3,41033099, 888.00,Morgan Hunt UK Ltd,01086900,,Temporary Staff,Finance Sals&Overheads,D01AFDF1111300,
http://statistics.data.gov.uk/id/local-authority/29UP,Tonbridge & Malling Borough Council,6/2/2021,0041033100/3,41033100, 749.85,Morgan Hunt UK Ltd,01086900,,Temporary Staff,Finance Sals&Overheads,D01AFDF1111300,
http://statistics.data.gov.uk/id/local-authority/29UP,Tonbridge & Malling Borough Council,6/2/2021,0041033101/10,41033101, 0.80,Computershare Voucher Services,01212600,,National Insurance,Env Hlth & Hsg Sals&Overheads,D01AVDV0211191,
http://statistics.data.gov.uk/id/local-authority/29UP,Tonbridge & Malling Borough Council,6/2/2021,0041033101/11,41033101, 243.00,Computershare Voucher Services,01212600,,Childcare Scheme,Env Hlth & Hsg Sals&Overheads,D01AVDV0711136,
http://statistics.data.gov.uk/id/local-authority/29UP,Tonbridge & Malling Borough Council,6/2/2021,0041033101/12,41033101, 9.72,Computershare Voucher Services,01212600,,National Insurance,Env Hlth & Hsg Sals&Overheads,D01AVDV0711191,
http://statistics.data.gov.uk/id/local-authority/29UP,Tonbridge & Malling Borough Council,6/2/2021,0041033101/3,41033101, 20.00,Computershare Voucher Services,01212600,,Childcare Scheme,Finance Sals&Overheads,D01AFDF0911136,
http://statistics.data.gov.uk/id/local-authority/29UP,Tonbridge & Malling Borough Council,6/2/2021,0041033101/4,41033101, 0.80,Computershare Voucher Services,01212600,,National Insurance,Finance Sals&Overheads,D01AFDF0911191,
http://statistics.data.gov.uk/id/local-authority/29UP,Tonbridge & Malling Borough Council,6/2/2021,0041033101/5,41033101, 90.00,Computershare Voucher Services,01212600,,Childcare Scheme,St Scene & Leis Sals&Overheads,D01AGDG0411136,
http://statistics.data.gov.uk/id/local-authority/29UP,Tonbridge & Malling Borough Council,6/2/2021,0041033101/6,41033101, 3.60,Computershare Voucher Services,01212600,,National Insurance,St Scene & Leis Sals&Overheads,D01AGDG0411191,
http://statistics.data.gov.uk/id/local-authority/29UP,Tonbridge & Malling Borough Council,6/2/2021,0041033101/7,41033101, 50.00,Computershare Voucher Services,01212600,,Childcare Scheme,Legal Sals&Overheads,D01ARDR0011136,
http://statistics.data.gov.uk/id/local-authority/29UP,Tonbridge & Malling Borough Council,6/2/2021,0041033101/8,41033101, 2.00,Computershare Voucher Services,01212600,,National Insurance,Legal Sals&Overheads,D01ARDR0011191,
http://statistics.data.gov.uk/id/local-authority/29UP,Tonbridge & Malling Borough Council,6/2/2021,0041033101/9,41033101, 20.00,Computershare Voucher Services,01212600,,Childcare Scheme,Env Hlth & Hsg Sals&Overheads,D01AVDV0211136,
http://statistics.data.gov.uk/id/local-authority/29UP,Tonbridge & Malling Borough Council,6/2/2021,0051008555/1,51008555, 290.00,Irrv,00050300,,Ext Fees/Prof & Tech,Training,D10DCDF1113561,510010491
http://statistics.data.gov.uk/id/local-authority/29UP,Tonbridge & Malling Borough Council,6/2/2021,0051008558/1,51008558, 290.00,Irrv,00050300,,Ext Fees/Prof & Tech,Training,D10DCDF1113561,510010490
http://statistics.data.gov.uk/id/local-authority/29UP,Tonbridge & Malling Borough Council,6/2/2021,0051008559/1,51008559, 290.00,Irrv,00050300,,Ext Fees/Prof & Tech,Training,D10DCDF1113561,510010492
http://statistics.data.gov.uk/id/local-authority/29UP,Tonbridge & Malling Borough Council,6/7/2021,0011042661/1,11042661, 7266.45,Wallgate Ltd,00850000,,BRREP General Maintenance,PC - General,M15JAP10001900,110068983
http://statistics.data.gov.uk/id/local-authority/29UP,Tonbridge & Malling Borough Council,6/9/2021,0011042662/1,11042662, 7266.45,Wallgate Ltd,00850000,,BRREP General Maintenance,PC - General,M15JAP10001900,110068983
http://statistics.data.gov.uk/id/local-authority/29UP,Tonbridge & Malling Borough Council,6/9/2021,0011042664/1,11042664, 4844.30,Wallgate Ltd,00850000,,BRREP General Maintenance,PC - General,M15JAP10001900,110068983
http://statistics.data.gov.uk/id/local-authority/29UP,Tonbridge & Malling Borough Council,6/9/2021,0011042666/1,11042666, 158.00,BML Building Services Ltd,01505000,,BRREP Response - General,Pleasure Grounds & Open Spaces,M15HHP50001997,110069051
http://statistics.data.gov.uk/id/local-authority/29UP,Tonbridge & Malling Borough Council,6/9/2021,0011042668/1,11042668, 156.00,KCS,00054200,,Cleaning & Domestic Supplies,Cleaning & Security,D21FD000026001,110068460
http://statistics.data.gov.uk/id/local-authority/29UP,Tonbridge & Malling Borough Council,6/9/2021,0011042669/1,11042669, 460.00,G C Industrial Heating Services,00578100,,BRREP Plant renewals,Tonbridge Farm Pavillion,M15HGP20001909,110069050
http://statistics.data.gov.uk/id/local-authority/29UP,Tonbridge & Malling Borough Council,6/9/2021,0011042670/1,11042670, 208.00,BML Building Services Ltd,01505000,,BRREP Resp - Vandal / Break-In,PC - General,M15JAP50001998,110069055
http://statistics.data.gov.uk/id/local-authority/29UP,Tonbridge & Malling Borough Council,6/9/2021,0011042671/1,11042671, 350.00,G C Industrial Heating Services,00578100,,BRREP Servicing - Heating Syst,Tonbridge Farm Pavillion,M15HGP20001934,110069064
http://statistics.data.gov.uk/id/local-authority/29UP,Tonbridge & Malling Borough Council,6/9/2021,0011042672/1,11042672, 743.00,G C Industrial Heating Services,00578100,,BRREP Servicing - boilers,Angel Centre,M15HAP20001929,110069059
http://statistics.data.gov.uk/id/local-authority/29UP,Tonbridge & Malling Borough Council,6/9/2021,0011042673/1,11042673, 500.00,G C Industrial Heating Services,00578100,,BRREP Servicing - Heating Syst,Leis Man Poult Wood Golf Centr,M15HEP20001934,110069060
http://statistics.data.gov.uk/id/local-authority/29UP,Tonbridge & Malling Borough Council,6/9/2021,0011042674/1,11042674, 1089.00,G C Industrial Heating Services,00578100,,BRREP Servicing - Heating Syst,Gibson Building West,M15KBP20001934,110069061
http://statistics.data.gov.uk/id/local-authority/29UP,Tonbridge & Malling Borough Council,6/9/2021,0011042675/1,11042675, 335.00,G C Industrial Heating Services,00578100,,BRREP Servicing - Heating Syst,Gibson Building East,M15KGP20001934,110069063
http://statistics.data.gov.uk/id/local-authority/29UP,Tonbridge & Malling Borough Council,6/9/2021,0011042676/1,11042676, 720.00,G C Industrial Heating Services,00578100,,BRREP Servicing - Heating Syst,Tonbridge Swimming Pool,M15HBP20001934,110069062
http://statistics.data.gov.uk/id/local-authority/29UP,Tonbridge & Malling Borough Council,6/9/2021,0011042677/1,11042677, 56.00,Willow Pumps Ltd,00114100,,BRREP Servicing - Pumping Stn,Tonbridge Swimming Pool,M15HBP20001931,110068675
http://statistics.data.gov.uk/id/local-authority/29UP,Tonbridge & Malling Borough Council,6/9/2021,0011042677/2,11042677, 112.00,Willow Pumps Ltd,00114100,,BRREP Servicing - Pumping Stn,Ton Sportsgrnd Bldgs / Toilets,M15HCP20001931,110068675
http://statistics.data.gov.uk/id/local-authority/29UP,Tonbridge & Malling Borough Council,6/9/2021,0011042677/3,11042677, 112.00,Willow Pumps Ltd,00114100,,BRREP Servicing - Pumping Stn,Vale Rise Depot,M15LCP20001931,110068675
http://statistics.data.gov.uk/id/local-authority/29UP,Tonbridge & Malling Borough Council,6/9/2021,0011042680/3,11042680, 194.08,Chubb Fire & Security Ltd,00115400,174605362,BRREP Servicing-IntruderAlarm,Tonbridge Swimming Pool,M15HBP20001939,
http://statistics.data.gov.uk/id/local-authority/29UP,Tonbridge & Malling Borough Council,6/9/2021,0011042681/3,11042681, 158.00,BML Building Services Ltd,01505000,,BRREP Response - General,Tonbridge Castle / CAB,M15KFP50001997,
http://statistics.data.gov.uk/id/local-authority/29UP,Tonbridge & Malling Borough Council,6/9/2021,0011042682/3,11042682, 13.94,Royal Mail,00086200,,Purchases,Mailsort Stock Account,K37BR000001002,
http://statistics.data.gov.uk/id/local-authority/29UP,Tonbridge & Malling Borough Council,6/9/2021,0011042682/4,11042682, 1278.29,Royal Mail,00086200,,Purchases,Mailsort Stock Account,K37BR000001002,
http://statistics.data.gov.uk/id/local-authority/29UP,Tonbridge & Malling Borough Council,6/9/2021,0011042683/1,11042683, 1950.00,Raigins,01769400,,Office Security,Cleaning & Security,D21FD000044047,110068912
http://statistics.data.gov.uk/id/local-authority/29UP,Tonbridge & Malling Borough Council,6/9/2021,0011042730/1,11042730, 412.00,Coolburn Air Conditioning Ltd,01137900,,BRREP Servicing - air handling,Tonbridge Swimming Pool,M15HBP20001936,110068815
http://statistics.data.gov.uk/id/local-authority/29UP,Tonbridge & Malling Borough Council,6/9/2021,0011042731/1,11042731, 2940.00,Coolburn Air Conditioning Ltd,01137900,,BRREP Servicing - air handling,Larkfield Leisure Centre,M15HDP20001936,110069001
http://statistics.data.gov.uk/id/local-authority/29UP,Tonbridge & Malling Borough Council,6/9/2021,0011042732/1,11042732, 274.76,Coolburn Air Conditioning Ltd,01137900,,BRREP Servicing - air handling,Larkfield Leisure Centre,M15HDP20001936,110068993
http://statistics.data.gov.uk/id/local-authority/29UP,Tonbridge & Malling Borough Council,6/9/2021,0011042733/1,11042733, 1305.00,Pinnacle Response Ltd,01573000,,Purchases,Licences - Fee Paying,H27SHCV1940101,110069070
http://statistics.data.gov.uk/id/local-authority/29UP,Tonbridge & Malling Borough Council,6/9/2021,0011042733/2,11042733, 72.50,Pinnacle Response Ltd,01573000,,Purchases,Licences - Fee Paying,H27SHCV1940101,110069070
http://statistics.data.gov.uk/id/local-authority/29UP,Tonbridge & Malling Borough Council,6/9/2021,0011042734/1,11042734, 150.00,Windsor Print Production Limited,01187500,,Marketing,Tonbridge Castle Gatehouse,B40TG000044215,110069048
http://statistics.data.gov.uk/id/local-authority/29UP,Tonbridge & Malling Borough Council,6/9/2021,0011042735/1,11042735, 35.00,Absolute Creative Print,01801100,,Marketing,Tonbridge Castle Gatehouse,B40TG000044215,110069068
http://statistics.data.gov.uk/id/local-authority/29UP,Tonbridge & Malling Borough Council,6/9/2021,0011042736/1,11042736, 4179.00,TMS Protection Ltd,01744300,,Re-opening High Streets,Eco Dev & Reg Gen Bus Support,D52TDCV1948076,
http://statistics.data.gov.uk/id/local-authority/29UP,Tonbridge & Malling Borough Council,6/9/2021,0011042737/1,11042737, 440.00,Disclosure & Barring Service,00865900,,Professional Fees,Licences - Fee Paying,H27SH000044001,
http://statistics.data.gov.uk/id/local-authority/29UP,Tonbridge & Malling Borough Council,6/9/2021,0011042738/1,11042738, 660.00,KH Recruitment Ltd,01738900,,Temporary Staff,Admin & Prop Sals&Overheads,D01AADA1211300,
http://statistics.data.gov.uk/id/local-authority/29UP,Tonbridge & Malling Borough Council,6/9/2021,0011042740/1,11042740, 7266.45,Wallgate Ltd,00850000,,BRREP General Maintenance,PC - General,M15JAP10001900,110068983
http://statistics.data.gov.uk/id/local-authority/29UP,Tonbridge & Malling Borough Council,6/9/2021,0011042741/1,11042741, 11750.04,Wallgate Ltd,00850000,,BRREP General Maintenance,PC - General,M15JAP10001900,
http://statistics.data.gov.uk/id/local-authority/29UP,Tonbridge & Malling Borough Council,6/9/2021,0012007990/1,12007990, 77.98,CCS Media Ltd,00018000,,Toner Cartridges,Information Technology,D27KD000043018,410031962
http://statistics.data.gov.uk/id/local-authority/29UP,Tonbridge & Malling Borough Council,6/9/2021,0012007990/2,12007990, 2.00,CCS Media Ltd,00018000,,Delivery Expenses,Information Technology,D27KD000044069,410031962
http://statistics.data.gov.uk/id/local-authority/29UP,Tonbridge & Malling Borough Council,6/9/2021,0012007991/1,12007991, 39.99,CCS Media Ltd,00018000,,Purchases,Information Technology,D27KD000040101,410031968
http://statistics.data.gov.uk/id/local-authority/29UP,Tonbridge & Malling Borough Council,6/9/2021,0012007991/2,12007991, 2.00,CCS Media Ltd,00018000,,Delivery Expenses,Information Technology,D27KD000044069,410031968
http://statistics.data.gov.uk/id/local-authority/29UP,Tonbridge & Malling Borough Council,6/9/2021,0012007992/1,12007992, 189.90,CCS Media Ltd,00018000,,Purchases,Information Technology,D27KD000040101,410031967
http://statistics.data.gov.uk/id/local-authority/29UP,Tonbridge & Malling Borough Council,6/9/2021,0012007992/2,12007992, 2.00,CCS Media Ltd,00018000,,Delivery Expenses,Information Technology,D27KD000044069,410031967
http://statistics.data.gov.uk/id/local-authority/29UP,Tonbridge & Malling Borough Council,6/9/2021,0012007993/1,12007993, 129.98,CCS Media Ltd,00018000,,Purchases,Information Technology,D27KD000040101,410031959
http://statistics.data.gov.uk/id/local-authority/29UP,Tonbridge & Malling Borough Council,6/9/2021,0012007993/2,12007993, 2.00,CCS Media Ltd,00018000,,Delivery Expenses,Information Technology,D27KD000044069,410031959
http://statistics.data.gov.uk/id/local-authority/29UP,Tonbridge & Malling Borough Council,6/9/2021,0012007994/1,12007994, 86.00,Sumillion Ltd,01726600,,Purchases,St Scene & Leis Sals&Overheads,D01AGDG3040101,120021275
http://statistics.data.gov.uk/id/local-authority/29UP,Tonbridge & Malling Borough Council,6/9/2021,0012007995/1,12007995, 84.00,BT Group Engineering Services,01165800,,Purchases,Information Technology,D27KD000040101,410031969
http://statistics.data.gov.uk/id/local-authority/29UP,Tonbridge & Malling Borough Council,6/9/2021,0012007996/3,12007996, 13.72,Esendex Limited,01008900,,Leased Lines & Modems,Information Technology,D27KD000045011,
http://statistics.data.gov.uk/id/local-authority/29UP,Tonbridge & Malling Borough Council,6/9/2021,0012007997/3,12007997, 386.00,iHub UK Limited,01287000,,Telephones - Rentals,General Admin Telephones,D24GT000045005,
http://statistics.data.gov.uk/id/local-authority/29UP,Tonbridge & Malling Borough Council,6/9/2021,0012007997/4,12007997, 333.65,iHub UK Limited,01287000,,Telephones - Call Costs,General Admin Telephones,D24GT000045006,
http://statistics.data.gov.uk/id/local-authority/29UP,Tonbridge & Malling Borough Council,6/9/2021,0012007998/3,12007998, 3199.30,Phoenix Software Ltd,00077400,755349015,Software Hire & Support,Information Technology,D27KD000044059,
http://statistics.data.gov.uk/id/local-authority/29UP,Tonbridge & Malling Borough Council,6/9/2021,0012007999/1,12007999, 2050.00,Jadu Creative,01770500,,Initial Furniture & Equipment,CMS Web Sol'n,P06EX000009906,410031862
http://statistics.data.gov.uk/id/local-authority/29UP,Tonbridge & Malling Borough Council,6/9/2021,0012008000/1,12008000, 74.80,Vanquish Tech,01798700,,Purchases,Information Technology,D27KD000040101,410031972
http://statistics.data.gov.uk/id/local-authority/29UP,Tonbridge & Malling Borough Council,6/9/2021,0012008000/2,12008000, 124.80,Vanquish Tech,01798700,,Purchases,Information Technology,D27KD000040101,410031972
http://statistics.data.gov.uk/id/local-authority/29UP,Tonbridge & Malling Borough Council,6/9/2021,0012008000/3,12008000, 95.25,Vanquish Tech,01798700,,Purchases,Information Technology,D27KD000040101,410031972
http://statistics.data.gov.uk/id/local-authority/29UP,Tonbridge & Malling Borough Council,6/9/2021,0012008001/3,12008001, 10.98,Daisy Communications,01068100,,Telephones - General,Leybourne Lakes Country Park,B22LK000045010,
http://statistics.data.gov.uk/id/local-authority/29UP,Tonbridge & Malling Borough Council,6/9/2021,0012008001/4,12008001, 2.72,Daisy Communications,01068100,,Telephones - Rentals,General Admin Telephones,D24GT000045005,
http://statistics.data.gov.uk/id/local-authority/29UP,Tonbridge & Malling Borough Council,6/9/2021,0012008001/5,12008001, 252.91,Daisy Communications,01068100,,Telephones - Call Costs,General Admin Telephones,D24GT000045006,
http://statistics.data.gov.uk/id/local-authority/29UP,Tonbridge & Malling Borough Council,6/9/2021,0012008001/6,12008001, 84.88,Daisy Communications,01068100,,Leased Lines & Modems,Information Technology,D27KD000045011,
http://statistics.data.gov.uk/id/local-authority/29UP,Tonbridge & Malling Borough Council,6/9/2021,0012008001/7,12008001, 65.88,Daisy Communications,01068100,,Maintenance - General,Security Services Management,E09GA000040135,
http://statistics.data.gov.uk/id/local-authority/29UP,Tonbridge & Malling Borough Council,6/9/2021,0021037177/1,21037177, 298.88,Burslem Memorials Ltd,01013400,,Maintenance of Grounds,Cemetery,B26MP000020402,210056274
http://statistics.data.gov.uk/id/local-authority/29UP,Tonbridge & Malling Borough Council,6/9/2021,0021037178/1,21037178, 89.22,Lamberhurst Engineering Ltd,01306400,,Transport Repair & Maintenance,Leybourne Lakes Country Park,B22LK000030103,210056311
http://statistics.data.gov.uk/id/local-authority/29UP,Tonbridge & Malling Borough Council,6/9/2021,0021037179/1,21037179, 261.49,Lamberhurst Engineering Ltd,01306400,,Transport Repair & Maintenance,Leybourne Lakes Country Park,B22LK000030103,210056311
http://statistics.data.gov.uk/id/local-authority/29UP,Tonbridge & Malling Borough Council,6/9/2021,0021037180/1,21037180, 30.00,Lawrence Container Hire Ltd,01033800,,Maintenance of Grounds,Leybourne Lakes Country Park,B22LK000020402,
http://statistics.data.gov.uk/id/local-authority/29UP,Tonbridge & Malling Borough Council,6/9/2021,0021037181/1,21037181, 100.00,Mr Mark Williams,01184500,,Events Support,Events Development,B41TJ000044041,
http://statistics.data.gov.uk/id/local-authority/29UP,Tonbridge & Malling Borough Council,6/9/2021,0021037182/1,21037182, 49.29,Toilets+ Ltd,01039000,,Maintenance of Grounds,Leybourne Lakes Country Park,B22LK000020402,
http://statistics.data.gov.uk/id/local-authority/29UP,Tonbridge & Malling Borough Council,6/9/2021,0021037183/1,21037183, 3640.00,Treework,00560700,,Health & Safety - Trees,Countryside/Woodland Mgt,B22LG000044045,210056309
http://statistics.data.gov.uk/id/local-authority/29UP,Tonbridge & Malling Borough Council,6/9/2021,0021037184/1,21037184, 1100.00,Tonbridge Sports Association,00976800,,Honoraria,Tonbridge Sports Association,B02AH000044036,
http://statistics.data.gov.uk/id/local-authority/29UP,Tonbridge & Malling Borough Council,6/9/2021,0022025471/1,22025471, 5449.24,MCL  Mechanical Handling Ltd,00064100,,Other Expenses,Disabled Facilities Grant Mand,P03AC000009908,
http://statistics.data.gov.uk/id/local-authority/29UP,Tonbridge & Malling Borough Council,6/9/2021,0022025472/1,22025472, 5420.78,MCL  Mechanical Handling Ltd,00064100,,Other Expenses,Disabled Facilities Grant Mand,P03AC000009908,
http://statistics.data.gov.uk/id/local-authority/29UP,Tonbridge & Malling Borough Council,6/9/2021,0022025473/1,22025473, 786.59,Peabody South East LTD,01680900,,Other Expenses,Disabled Facilities Grant Mand,P03AC000009908,
http://statistics.data.gov.uk/id/local-authority/29UP,Tonbridge & Malling Borough Council,6/9/2021,0022025474/3,22025474, 3735.29,Ward Security LTD,01490000,,Dog Warden,Street Scene,H23SD000044100,
http://statistics.data.gov.uk/id/local-authority/29UP,Tonbridge & Malling Borough Council,6/9/2021,0022025475/3,22025475, 800.00,Green Recycling LTD,01563000,,Paper Recycling,Dry Recycling,H34SR000054024,
http://statistics.data.gov.uk/id/local-authority/29UP,Tonbridge & Malling Borough Council,6/9/2021,0022025476/3,22025476, 740.00,G2 Recruitment Solutions,01786000,,Temporary Staff,Env Hlth & Hsg Sals&Overheads,D01AVDV0711300,
http://statistics.data.gov.uk/id/local-authority/29UP,Tonbridge & Malling Borough Council,6/9/2021,0022025477/3,22025477, 740.00,G2 Recruitment Solutions,01786000,,Temporary Staff,Env Hlth & Hsg Sals&Overheads,D01AVDV0711300,
http://statistics.data.gov.uk/id/local-authority/29UP,Tonbridge & Malling Borough Council,6/9/2021,0022025478/3,22025478, 602.25,KH Recruitment Ltd,01738900,,Temporary Staff,St Scene & Leis Sals&Overheads,D01AGDG3011300,
http://statistics.data.gov.uk/id/local-authority/29UP,Tonbridge & Malling Borough Council,6/9/2021,0022025479/3,22025479, 4645.60,Countrystyle Group,00835900,781981681,Plastic Recycling,Dry Recycling,H34SR000054019,
http://statistics.data.gov.uk/id/local-authority/29UP,Tonbridge & Malling Borough Council,6/9/2021,0022025480/1,22025480, 5750.50,House to Home Lettings Ltd ,01647600,,Temporary Accommodation,Homelessness,C01AA000044051,
http://statistics.data.gov.uk/id/local-authority/29UP,Tonbridge & Malling Borough Council,6/9/2021,0022025481/1,22025481, 2732.50,1st  Steps Housing Kent,01716100,,Temporary Accommodation,Homelessness,C01AA000044051,
http://statistics.data.gov.uk/id/local-authority/29UP,Tonbridge & Malling Borough Council,6/9/2021,0022025482/1,22025482, 2226.57,The Care Group-Housing & Care Trust,01699600,,Temporary Accommodation,Homelessness,C01AA000044051,
http://statistics.data.gov.uk/id/local-authority/29UP,Tonbridge & Malling Borough Council,6/9/2021,0022025483/1,22025483, 961.00,Kent Property Services,01722500,,Temporary Accommodation,Homelessness,C01AA000044051,
http://statistics.data.gov.uk/id/local-authority/29UP,Tonbridge & Malling Borough Council,6/9/2021,0022025484/1,22025484, 13104.00,Less Homeless Ltd,01489300,,Temporary Accommodation,Homelessness,C01AA000044051,
http://statistics.data.gov.uk/id/local-authority/29UP,Tonbridge & Malling Borough Council,6/9/2021,0022025485/1,22025485, 71742.00,Paramount Independent Property Suppliers,01595300,,Temporary Accommodation,Homelessness,C01AA000044051,
http://statistics.data.gov.uk/id/local-authority/29UP,Tonbridge & Malling Borough Council,6/9/2021,0022025486/1,22025486, 22570.00,SPA CAFFE LIMITED,00127100,,Temporary Accommodation,Homelessness,C01AA000044051,
http://statistics.data.gov.uk/id/local-authority/29UP,Tonbridge & Malling Borough Council,6/9/2021,0022025487/1,22025487, 9882.00,Simon Niblett Lettings,00072600,,Temporary Accommodation,Homelessness,C01AA000044051,
http://statistics.data.gov.uk/id/local-authority/29UP,Tonbridge & Malling Borough Council,6/9/2021,0022025488/1,22025488, 3410.00,Simon Niblett Lettings,00072600,,Temporary Accommodation,Homelessness,C01AA000044051,
http://statistics.data.gov.uk/id/local-authority/29UP,Tonbridge & Malling Borough Council,6/9/2021,0022025489/1,22025489, 5925.00,Simply Rented Ltd ,01691400,,Temporary Accommodation,Homelessness,C01AA000044051,
http://statistics.data.gov.uk/id/local-authority/29UP,Tonbridge & Malling Borough Council,6/9/2021,0022025490/1,22025490, 94.00,Streamline (Kent) Limited,01043100,,Public Transport,Homelessness,C01AA000033001,
http://statistics.data.gov.uk/id/local-authority/29UP,Tonbridge & Malling Borough Council,6/9/2021,0022025491/1,22025491, 25076.50,Social & Community Care,01768400,,Temporary Accommodation,Homelessness,C01AA000044051,
http://statistics.data.gov.uk/id/local-authority/29UP,Tonbridge & Malling Borough Council,6/9/2021,0022025492/1,22025492, 1865.38,Peabody South East LTD,01680900,,Other Expenses,Disabled Facilities Grant Mand,P03AC000009908,
http://statistics.data.gov.uk/id/local-authority/29UP,Tonbridge & Malling Borough Council,6/9/2021,0022025493/1,22025493, 4749.16,MCL  Mechanical Handling Ltd,00064100,,Other Expenses,Disabled Facilities Grant Mand,P03AC000009908,
http://statistics.data.gov.uk/id/local-authority/29UP,Tonbridge & Malling Borough Council,6/9/2021,0022025494/1,22025494, 6242.00,Tunbridge Wells Borough Council,00844600,,Air Quality Monitoring,Environmental Protection,H32SN000054016,220003077
http://statistics.data.gov.uk/id/local-authority/29UP,Tonbridge & Malling Borough Council,6/9/2021,0022025495/1,22025495, 12792.00,Craemer UK LTD,01616400,,Initial Furniture & Equipment,Refuse Bins Growth/Replacement,P02DA000009906,220003110
http://statistics.data.gov.uk/id/local-authority/29UP,Tonbridge & Malling Borough Council,6/9/2021,0022025496/1,22025496, 7077.00,Specialist Hygiene Services,01466100,,Contract Payments,Public Conveniences,H22SC000054001,220003093
http://statistics.data.gov.uk/id/local-authority/29UP,Tonbridge & Malling Borough Council,6/9/2021,0022025497/1,22025497, 36.08,Viridor Waste Management Ltd,00682900,,Trade Refuse Charges,Cleaning & Security,D21FD000044008,
http://statistics.data.gov.uk/id/local-authority/29UP,Tonbridge & Malling Borough Council,6/9/2021,0022025498/1,22025498, 3306.00,Premier Property Providers,01785400,,Temporary Accommodation,Homelessness,C01AA000044051,
http://statistics.data.gov.uk/id/local-authority/29UP,Tonbridge & Malling Borough Council,6/9/2021,0022025499/1,22025499, 4275.00,Premier Property Providers,01785400,,Temporary Accommodation,Homelessness,C01AA000044051,
http://statistics.data.gov.uk/id/local-authority/29UP,Tonbridge & Malling Borough Council,6/9/2021,0022025501/1,22025501, 1239.50,Vivid Resourcing,01773700,,Temporary Staff,Env Hlth & Hsg Sals&Overheads,D01AVDV0911300,
http://statistics.data.gov.uk/id/local-authority/29UP,Tonbridge & Malling Borough Council,6/9/2021,0022025502/1,22025502, 163.89,Vivid Resourcing,01773700,,Temporary Staff,Env Hlth & Hsg Sals&Overheads,D01AVDV0911300,
http://statistics.data.gov.uk/id/local-authority/29UP,Tonbridge & Malling Borough Council,6/9/2021,0022025503/1,22025503, 5145.00,Access & Automation Ltd,01773400,,Other Expenses,Disabled Facilities Grant Mand,P03AC000009908,
http://statistics.data.gov.uk/id/local-authority/29UP,Tonbridge & Malling Borough Council,6/9/2021,0031017962/1,31017962, 437.10,Greenham Trading Ltd,00127900,745138823,Purchases,Civil Contingencies,D33NA000040101,310042674
http://statistics.data.gov.uk/id/local-authority/29UP,Tonbridge & Malling Borough Council,6/9/2021,0031017962/2,31017962, 255.50,Greenham Trading Ltd,00127900,745138823,Purchases,Civil Contingencies,D33NA000040101,310042674
http://statistics.data.gov.uk/id/local-authority/29UP,Tonbridge & Malling Borough Council,6/9/2021,0031017963/1,31017963, 287.68,Archway Highway Services Ltd,01398000,,Premises Repairs & Maintenance,Parking On-Street,E10HD000020601,310042670
http://statistics.data.gov.uk/id/local-authority/29UP,Tonbridge & Malling Borough Council,6/9/2021,0031017964/1,31017964, 180.00,Archway Highway Services Ltd,01398000,,Premises Repairs & Maintenance,Parking On-Street,E10HD000020601,310042671
http://statistics.data.gov.uk/id/local-authority/29UP,Tonbridge & Malling Borough Council,6/9/2021,0031017964/2,31017964, 675.00,Archway Highway Services Ltd,01398000,,Premises Repairs & Maintenance,Parking On-Street,E10HD000020601,310042671
http://statistics.data.gov.uk/id/local-authority/29UP,Tonbridge & Malling Borough Council,6/9/2021,0031017965/3,31017965, 4.58,B&Q/Screwfix Direct,00141300,,Maintenance - General,Parking Off-Street,E10HA000040135,
http://statistics.data.gov.uk/id/local-authority/29UP,Tonbridge & Malling Borough Council,6/9/2021,0031017970/1,31017970, 61.21,Shell U.K. Oil Products Limited,01673300,,"Petrol, Diesel & Oil",Patrolling,B22LF000030106,
http://statistics.data.gov.uk/id/local-authority/29UP,Tonbridge & Malling Borough Council,6/9/2021,0031017970/2,31017970, 110.47,Shell U.K. Oil Products Limited,01673300,,"Petrol, Diesel & Oil",Parking Off-Street,E10HA000030106,
http://statistics.data.gov.uk/id/local-authority/29UP,Tonbridge & Malling Borough Council,6/9/2021,0031017970/3,31017970, 110.47,Shell U.K. Oil Products Limited,01673300,,"Petrol, Diesel & Oil",Parking On-Street,E10HD000030106,
http://statistics.data.gov.uk/id/local-authority/29UP,Tonbridge & Malling Borough Council,6/9/2021,0031017971/1,31017971, 30.45,Imperial Civil Enforcement Solutions,00057200,,Premises Repairs & Maintenance,Parking Off-Street,E10HA000020601,310042675
http://statistics.data.gov.uk/id/local-authority/29UP,Tonbridge & Malling Borough Council,6/9/2021,0031017971/2,31017971, 45.68,Imperial Civil Enforcement Solutions,00057200,,Premises Repairs & Maintenance,Parking On-Street,E10HD000020601,310042675
http://statistics.data.gov.uk/id/local-authority/29UP,Tonbridge & Malling Borough Council,6/9/2021,0031017972/3,31017972, 1689.88,CDER Group,01773300,,Adjudication & Enforcement Ser,Parking Off-Street,E10HA000044230,
http://statistics.data.gov.uk/id/local-authority/29UP,Tonbridge & Malling Borough Council,6/9/2021,0031017973/3,31017973, 3165.00,Marston,01485000,,Adjudication & Enforcement Ser,Parking Off-Street,E10HA000044230,
http://statistics.data.gov.uk/id/local-authority/29UP,Tonbridge & Malling Borough Council,6/9/2021,0032009135/1,32009135, 260.25,KM Media Group Ltd,00053900,,Advertising General,Development Management,A01ABZ99944216,310042659
http://statistics.data.gov.uk/id/local-authority/29UP,Tonbridge & Malling Borough Council,6/9/2021,0032009136/3,32009136, 1363.20,G2 Recruitment Solutions,01786000,,Temporary Staff,Planning Sals&Overheads,D01AJDJ0111300,
http://statistics.data.gov.uk/id/local-authority/29UP,Tonbridge & Malling Borough Council,6/9/2021,0032009137/3,32009137, 1263.95,Tunbridge Wells Borough Council,00844600,,Temporary Staff,Planning Sals&Overheads,D01AJDJ0311300,
http://statistics.data.gov.uk/id/local-authority/29UP,Tonbridge & Malling Borough Council,6/9/2021,0032009138/1,32009138, 1535.06,Arcadis Consulting (UK) Limited,01760300,,Professional Fees,Planning Policy,A01AFBORO44001,320003208
http://statistics.data.gov.uk/id/local-authority/29UP,Tonbridge & Malling Borough Council,6/9/2021,0032009139/1,32009139, 4000.00,DHA Planning Ltd,01553900,,Professional Fees,Planning Policy,A01AF000044001,320003289
http://statistics.data.gov.uk/id/local-authority/29UP,Tonbridge & Malling Borough Council,6/9/2021,0032009140/1,32009140, 260.25,KM Media Group Ltd,00053900,,Advertising General,Development Management,A01ABZ99944216,310042660
http://statistics.data.gov.uk/id/local-authority/29UP,Tonbridge & Malling Borough Council,6/9/2021,0041033105/3,41033105, 556.88,KH Recruitment Ltd,01738900,,Temporary Staff,Finance Sals&Overheads,D01AFDF1111300,
http://statistics.data.gov.uk/id/local-authority/29UP,Tonbridge & Malling Borough Council,6/9/2021,0041033105/4,41033105, 437.25,KH Recruitment Ltd,01738900,,Temporary Staff,Finance Sals&Overheads,D01AFDF1111300,
http://statistics.data.gov.uk/id/local-authority/29UP,Tonbridge & Malling Borough Council,6/9/2021,0041033106/3,41033106, 391.88,KH Recruitment Ltd,01738900,,Temporary Staff,Finance Sals&Overheads,D01AFDF1111300,
http://statistics.data.gov.uk/id/local-authority/29UP,Tonbridge & Malling Borough Council,6/9/2021,0041033108/3,41033108, 113.82,Adelante Software Limited,01393800,812115871,Credit Card Commission,Banking Arrangements,D43QK000044082,
http://statistics.data.gov.uk/id/local-authority/29UP,Tonbridge & Malling Borough Council,6/9/2021,0041033109/3,41033109, 888.00,Morgan Hunt UK Ltd,01086900,,Temporary Staff,Finance Sals&Overheads,D01AFDF1111300,
http://statistics.data.gov.uk/id/local-authority/29UP,Tonbridge & Malling Borough Council,6/9/2021,0041033110/3,41033110, 741.49,Morgan Hunt UK Ltd,01086900,,Temporary Staff,Finance Sals&Overheads,D01AFDF1111300,
http://statistics.data.gov.uk/id/local-authority/29UP,Tonbridge & Malling Borough Council,6/9/2021,0041033111/3,41033111, 697.79,Maidstone Borough Council,01173700,,Bailiffs Commission,Local Revenue & NNDR Collect,D41QA000044075,
http://statistics.data.gov.uk/id/local-authority/29UP,Tonbridge & Malling Borough Council,6/9/2021,0041033112/3,41033112, 710.43,Rundle & Co Ltd,00087200,,Bailiffs Commission,Local Revenue & NNDR Collect,D41QA000044075,
http://statistics.data.gov.uk/id/local-authority/29UP,Tonbridge & Malling Borough Council,6/9/2021,0041033113/3,41033113, 1125.02,Rundle & Co Ltd,00087200,,Bailiffs Commission,Local Revenue & NNDR Collect,D41QA000044075,
http://statistics.data.gov.uk/id/local-authority/29UP,Tonbridge & Malling Borough Council,6/9/2021,0041033114/3,41033114, 75.00,Rundle & Co Ltd,00087200,,Bailiffs Commission,Local Revenue & NNDR Collect,D41QA000044075,
http://statistics.data.gov.uk/id/local-authority/29UP,Tonbridge & Malling Borough Council,6/9/2021,0041033115/1,41033115, 80.00,WorldPay Ltd,01402000,991280207,Credit Card Commission,Banking Arrangements,D43QK000044082,
http://statistics.data.gov.uk/id/local-authority/29UP,Tonbridge & Malling Borough Council,6/9/2021,0041033115/2,41033115, 38.56,WorldPay Ltd,01402000,991280207,Credit Card Commission,Banking Arrangements,D43QK000044082,
http://statistics.data.gov.uk/id/local-authority/29UP,Tonbridge & Malling Borough Council,6/9/2021,0041033115/3,41033115, 0.80,WorldPay Ltd,01402000,991280207,Credit Card Commission,Banking Arrangements,D43QK000044082,
http://statistics.data.gov.uk/id/local-authority/29UP,Tonbridge & Malling Borough Council,6/9/2021,0041033116/1,41033116, 1.36,WorldPay Ltd,01402000,991280207,Credit Card Commission,Banking Arrangements,D43QK000044082,
http://statistics.data.gov.uk/id/local-authority/29UP,Tonbridge & Malling Borough Council,6/9/2021,0041033116/2,41033116, 80.00,WorldPay Ltd,01402000,991280207,Credit Card Commission,Banking Arrangements,D43QK000044082,
http://statistics.data.gov.uk/id/local-authority/29UP,Tonbridge & Malling Borough Council,6/9/2021,0041033116/3,41033116, 67.36,WorldPay Ltd,01402000,991280207,Credit Card Commission,Banking Arrangements,D43QK000044082,
http://statistics.data.gov.uk/id/local-authority/29UP,Tonbridge & Malling Borough Council,6/9/2021,0041033117/1,41033117, 80.00,WorldPay Ltd,01402000,991280207,Credit Card Commission,Banking Arrangements,D43QK000044082,
http://statistics.data.gov.uk/id/local-authority/29UP,Tonbridge & Malling Borough Council,6/9/2021,0041033117/2,41033117, 162.00,WorldPay Ltd,01402000,991280207,Credit Card Commission,Banking Arrangements,D43QK000044082,
http://statistics.data.gov.uk/id/local-authority/29UP,Tonbridge & Malling Borough Council,6/9/2021,0041033117/3,41033117, 0.32,WorldPay Ltd,01402000,991280207,Credit Card Commission,Banking Arrangements,D43QK000044082,
http://statistics.data.gov.uk/id/local-authority/29UP,Tonbridge & Malling Borough Council,6/9/2021,0041033118/1,41033118, 650.00,NEC Software Solutions UK Ltd,01073900,202159745,Other Expenses,Housing Benefits,C05CL000048010,410031971
http://statistics.data.gov.uk/id/local-authority/29UP,Tonbridge & Malling Borough Council,6/9/2021,0051008560/1,51008560, 123.00,REDACTED PERSONAL DATA,01801400,,Ext Fees/Prof & Tech,Training,D10DCDE0213561,
http://statistics.data.gov.uk/id/local-authority/29UP,Tonbridge & Malling Borough Council,6/9/2021,0051008562/1,51008562, 3300.00,NEC Software Solutions UK Ltd,01073900,202159745,Ext Fees/Prof & Tech,Training,D10DCDF1113561,510010496
http://statistics.data.gov.uk/id/local-authority/29UP,Tonbridge & Malling Borough Council,6/10/2021,0041033122/1,41033122, 200.64,National Westminster Bank Plc,00069400,,Direct Debit / Bank Charges,Local Revenue & NNDR Collect,D41QA000044079,
http://statistics.data.gov.uk/id/local-authority/29UP,Tonbridge & Malling Borough Council,6/10/2021,0041033123/1,41033123, 200.93,National Westminster Bank Plc,00069400,,Direct Debit / Bank Charges,Local Revenue & NNDR Collect,D41QA000044079,
http://statistics.data.gov.uk/id/local-authority/29UP,Tonbridge & Malling Borough Council,6/10/2021,0041033125/1,41033125, 20.03,WorldPay Ltd,01402000,991280207,Credit Card Commission,Banking Arrangements,D43QK000044082,
http://statistics.data.gov.uk/id/local-authority/29UP,Tonbridge & Malling Borough Council,6/10/2021,0041033126/1,41033126, 118.85,WorldPay ,01568000,,Credit Card Commission,Banking Arrangements,D43QK000044082,
http://statistics.data.gov.uk/id/local-authority/29UP,Tonbridge & Malling Borough Council,6/10/2021,0041033127/1,41033127, 1036.11,WorldPay ,01568000,,Credit Card Commission,Banking Arrangements,D43QK000044082,
http://statistics.data.gov.uk/id/local-authority/29UP,Tonbridge & Malling Borough Council,6/10/2021,0041033128/1,41033128, 36.00,YESpay International Limited,01068000,991280207,Contract Services,Banking Arrangements,D43QK000044005,
http://statistics.data.gov.uk/id/local-authority/29UP,Tonbridge & Malling Borough Council,6/16/2021,0011042746/1,11042746, 316.00,BML Building Services Ltd,01505000,,BRREP Response - General,Larkfield Leisure Centre,M15HDP50001997,110069056
http://statistics.data.gov.uk/id/local-authority/29UP,Tonbridge & Malling Borough Council,6/16/2021,0011042747/1,11042747, 425.00,Ch&i associates,01628900,,Legal Fees,Legal Sals&Overheads,D01ARDR0044002,110068823
http://statistics.data.gov.uk/id/local-authority/29UP,Tonbridge & Malling Borough Council,6/16/2021,0011042748/1,11042748, 930.00,Comfort Controls  (Service) Limited,01226700,,BRREP BMS System Mntce/Upgrade,Tonbridge Swimming Pool,M15HBP20001912,110068561
http://statistics.data.gov.uk/id/local-authority/29UP,Tonbridge & Malling Borough Council,6/16/2021,0011042749/1,11042749, 1415.61,Kohler Mira Limited,00902600,779588443,BRREP Plant renewals,Tonbridge Swimming Pool,M15HBP20001909,110068883
http://statistics.data.gov.uk/id/local-authority/29UP,Tonbridge & Malling Borough Council,6/16/2021,0011042750/1,11042750, 53.50,Kohler Mira Limited,00902600,779588443,BRREP Servicing - pool plant,Tonbridge Swimming Pool,M15HBP20001910,110068820
http://statistics.data.gov.uk/id/local-authority/29UP,Tonbridge & Malling Borough Council,6/16/2021,0011042751/3,11042751, 79.00,BML Building Services Ltd,01505000,,BRREP Response - General,Shops & Maisonettes,M15NAP50001997,
http://statistics.data.gov.uk/id/local-authority/29UP,Tonbridge & Malling Borough Council,6/16/2021,0011042752/3,11042752, 325.31,Initial Washroom Hygiene,00048300,,Laundry - Roller Towels,Cleaning & Security,D21FD000042003,
http://statistics.data.gov.uk/id/local-authority/29UP,Tonbridge & Malling Borough Council,6/16/2021,0011042753/3,11042753, 27.21,EDF Energy Customers plc,01035000,,Estate Management Charge,Land Review,D40PS000020400,
http://statistics.data.gov.uk/id/local-authority/29UP,Tonbridge & Malling Borough Council,6/16/2021,0011042754/3,11042754, 27.00,EDF Energy Customers plc,01035000,,Estate Management Charge,Land Review,D40PS000020400,
http://statistics.data.gov.uk/id/local-authority/29UP,Tonbridge & Malling Borough Council,6/16/2021,0011042755/1,11042755, 6404.54,Castle Water,01696500,,Water Charges (Metered),Buildings,D21FEDD6024001,
http://statistics.data.gov.uk/id/local-authority/29UP,Tonbridge & Malling Borough Council,6/16/2021,0011042756/3,11042756, 12710.00,Wallis a Division of Kier Construction L,00806300,683800816,Contract Payments,Homeless Accommodation,P03AX000009904,
http://statistics.data.gov.uk/id/local-authority/29UP,Tonbridge & Malling Borough Council,6/16/2021,0011042757/3,11042757, 588.00,Venn Group Ltd,00914300,,Temporary Staff,Legal Sals&Overheads,D01ARDR0011300,
http://statistics.data.gov.uk/id/local-authority/29UP,Tonbridge & Malling Borough Council,6/16/2021,0011042758/3,11042758, 100.00,Premier Group Recycling Ltd,01365300,,Confidential Waste,Cleaning & Security,D21FD000044009,
http://statistics.data.gov.uk/id/local-authority/29UP,Tonbridge & Malling Borough Council,6/16/2021,0011042759/3,11042759, 79.00,BML Building Services Ltd,01505000,,BRREP Response - General,Tonbridge Castle Gatehouse,M15HKP50001997,
http://statistics.data.gov.uk/id/local-authority/29UP,Tonbridge & Malling Borough Council,6/16/2021,0011042760/3,11042760, 4462.50,TMS Protection Ltd,01744300,,Re-opening High Streets,Eco Dev & Reg Gen Bus Support,D52TDCV1948076,
http://statistics.data.gov.uk/id/local-authority/29UP,Tonbridge & Malling Borough Council,6/16/2021,0011042761/3,11042761, 1770.00,Thomson Snell & Passmore,00101700,,Legal Fees,Legal Sals&Overheads,D01ARDR0044002,
http://statistics.data.gov.uk/id/local-authority/29UP,Tonbridge & Malling Borough Council,6/16/2021,0011042762/3,11042762, 1816.50,Thomson Snell & Passmore,00101700,,Legal Fees,Legal Sals&Overheads,D01ARDR0044002,
http://statistics.data.gov.uk/id/local-authority/29UP,Tonbridge & Malling Borough Council,6/16/2021,0011042763/3,11042763, 124.99,Tonbridge Services Limited,00427300,,Meeting Expenses,Committee Administration,D29LL000048020,
http://statistics.data.gov.uk/id/local-authority/29UP,Tonbridge & Malling Borough Council,6/16/2021,0011042764/3,11042764, 575.50,Kohler Mira Limited,00902600,779588443,BRREP Servicing - pool plant,Tonbridge Swimming Pool,M15HBP20001910,
http://statistics.data.gov.uk/id/local-authority/29UP,Tonbridge & Malling Borough Council,6/16/2021,0012008002/3,12008002, 1865.75,NTT United Kingdom Ltd,01747000,,Initial Furniture & Equipment,Capital Renewals IT,P06FBFB3009906,
http://statistics.data.gov.uk/id/local-authority/29UP,Tonbridge & Malling Borough Council,6/16/2021,0012008003/3,12008003, 1903.76,NTT United Kingdom Ltd,01747000,,Initial Furniture & Equipment,Capital Renewals IT,P06FBFB3009906,
http://statistics.data.gov.uk/id/local-authority/29UP,Tonbridge & Malling Borough Council,6/16/2021,0012008004/1,12008004, 412.22,Phoenix Software Ltd,00077400,755349015,Software Hire & Support,Information Technology,D27KD000044059,410031975
http://statistics.data.gov.uk/id/local-authority/29UP,Tonbridge & Malling Borough Council,6/16/2021,0012008004/2,12008004, 10.00,Phoenix Software Ltd,00077400,755349015,Delivery Expenses,Information Technology,D27KD000044069,410031975
http://statistics.data.gov.uk/id/local-authority/29UP,Tonbridge & Malling Borough Council,6/16/2021,0012008005/3,12008005, 839.40,KH Recruitment Ltd,01738900,,Salaries & On Costs,Information Technology,D27KD000015100,
http://statistics.data.gov.uk/id/local-authority/29UP,Tonbridge & Malling Borough Council,6/16/2021,0012008006/1,12008006, 17550.00,NEC Software Solutions UK Ltd,01073900,202159745,Software Hire & Support,Information Technology,D27KD000044059,410031739
http://statistics.data.gov.uk/id/local-authority/29UP,Tonbridge & Malling Borough Council,6/16/2021,0012008007/1,12008007, 14400.00,NEC Software Solutions UK Ltd,01073900,202159745,Software Hire & Support,Information Technology,D27KD000044059,410031739
http://statistics.data.gov.uk/id/local-authority/29UP,Tonbridge & Malling Borough Council,6/16/2021,0012008007/2,12008007, 7500.00,NEC Software Solutions UK Ltd,01073900,202159745,Software Hire & Support,Information Technology,D27KD000044059,410031739
http://statistics.data.gov.uk/id/local-authority/29UP,Tonbridge & Malling Borough Council,6/16/2021,0012008007/3,12008007, 1000.00,NEC Software Solutions UK Ltd,01073900,202159745,Software Hire & Support,Information Technology,D27KD000044059,410031739
http://statistics.data.gov.uk/id/local-authority/29UP,Tonbridge & Malling Borough Council,6/16/2021,0012008007/4,12008007, 3000.00,NEC Software Solutions UK Ltd,01073900,202159745,Software Hire & Support,Information Technology,D27KD000044059,410031739
http://statistics.data.gov.uk/id/local-authority/29UP,Tonbridge & Malling Borough Council,6/16/2021,0012008007/5,12008007, 17000.00,NEC Software Solutions UK Ltd,01073900,202159745,Software Hire & Support,Information Technology,D27KD000044059,410031739
http://statistics.data.gov.uk/id/local-authority/29UP,Tonbridge & Malling Borough Council,6/16/2021,0012008007/6,12008007, 6000.00,NEC Software Solutions UK Ltd,01073900,202159745,Software Hire & Support,Information Technology,D27KD000044059,410031739
http://statistics.data.gov.uk/id/local-authority/29UP,Tonbridge & Malling Borough Council,6/16/2021,0012008007/7,12008007, 1500.00,NEC Software Solutions UK Ltd,01073900,202159745,Software Hire & Support,Information Technology,D27KD000044059,410031739
http://statistics.data.gov.uk/id/local-authority/29UP,Tonbridge & Malling Borough Council,6/16/2021,0012008008/1,12008008, 100.00,Sectigo Limited - European Office,01214500,,Software Hire & Support,Information Technology,D27KD000044059,410031974
http://statistics.data.gov.uk/id/local-authority/29UP,Tonbridge & Malling Borough Council,6/16/2021,0021037185/3,21037185, 544.98,G.L. & R.G. Bourne,00737500,,Gates / Security,Haysden Country Park,B22LC000044017,
http://statistics.data.gov.uk/id/local-authority/29UP,Tonbridge & Malling Borough Council,6/16/2021,0021037186/3,21037186, 35.00,G.L. & R.G. Bourne,00737500,,Maintenance of Grounds,Haysden Country Park,B22LC000020402,
http://statistics.data.gov.uk/id/local-authority/29UP,Tonbridge & Malling Borough Council,6/16/2021,0021037187/1,21037187, 89.65,G.L. & R.G. Bourne,00737500,,Gates / Security,Haysden Country Park,B22LC000044017,
http://statistics.data.gov.uk/id/local-authority/29UP,Tonbridge & Malling Borough Council,6/16/2021,0021037188/3,21037188, 6.00,G.L. & R.G. Bourne,00737500,,Gates / Security,Haysden Country Park,B22LC000044017,
http://statistics.data.gov.uk/id/local-authority/29UP,Tonbridge & Malling Borough Council,6/16/2021,0021037189/3,21037189, 137.20,Countrystyle Group,00835900,781981681,Trade Refuse Charges,Leybourne Lakes Country Park,B22LK000044008,
http://statistics.data.gov.uk/id/local-authority/29UP,Tonbridge & Malling Borough Council,6/16/2021,0021037190/1,21037190, 980.00,Kent Highways Services,00320900,,Tonbridge Hanging Baskets,Tonbridge Castle Grounds,B22LB000050104,210056197
http://statistics.data.gov.uk/id/local-authority/29UP,Tonbridge & Malling Borough Council,6/16/2021,0021037190/2,21037190, 29.00,Kent Highways Services,00320900,,Tonbridge Hanging Baskets,Tonbridge Castle Grounds,B22LB000050104,210056197
http://statistics.data.gov.uk/id/local-authority/29UP,Tonbridge & Malling Borough Council,6/16/2021,0021037191/3,21037191, 106.56,Lamberhurst Engineering Ltd,01306400,,Purchases,Leybourne Lakes Country Park,B22LK000040101,
http://statistics.data.gov.uk/id/local-authority/29UP,Tonbridge & Malling Borough Council,6/16/2021,0021037192/1,21037192, 461.66,Landscape Services Ltd,00057600,,Maintenance of Grounds,Open Spaces & Amenity Areas,B22LE000020402,210056209
http://statistics.data.gov.uk/id/local-authority/29UP,Tonbridge & Malling Borough Council,6/16/2021,0021037193/1,21037193, 451.00,Landscape Services Ltd,00057600,,Maintenance of Grounds,Tonbridge Castle Grounds,B22LB000020402,210056189
http://statistics.data.gov.uk/id/local-authority/29UP,Tonbridge & Malling Borough Council,6/16/2021,0021037193/2,21037193, 451.00,Landscape Services Ltd,00057600,,Maintenance of Grounds,Tonbridge Castle Grounds,B22LB000020402,210056189
http://statistics.data.gov.uk/id/local-authority/29UP,Tonbridge & Malling Borough Council,6/16/2021,0021037194/1,21037194, 188.40,Landscape Services Ltd,00057600,,Maintenance of Grounds,Sports Grounds,B13ET000020402,210056303
http://statistics.data.gov.uk/id/local-authority/29UP,Tonbridge & Malling Borough Council,6/16/2021,0021037195/1,21037195, 723.00,Palmstead Nurseries Limited,01003900,,Tree Planting Schemes,Countryside/Woodland Mgt,B22LH000020405,210056248
http://statistics.data.gov.uk/id/local-authority/29UP,Tonbridge & Malling Borough Council,6/16/2021,0021037196/1,21037196, 628.22,Wicksteed Leisure Limited,00167900,,Maintenance of Play Equipment,Open Spaces & Amenity Areas,B22LE000020503,210056286
http://statistics.data.gov.uk/id/local-authority/29UP,Tonbridge & Malling Borough Council,6/16/2021,0021037197/1,21037197, 300.00,SWS Countryside & Landscape,01567200,,Health & Safety - Trees,Countryside/Woodland Mgt,B22LG000044045,
http://statistics.data.gov.uk/id/local-authority/29UP,Tonbridge & Malling Borough Council,6/16/2021,0021037198/1,21037198, 550.00,SWS Countryside & Landscape,01567200,,Health & Safety - Trees,Countryside/Woodland Mgt,B22LG000044045,210056305
http://statistics.data.gov.uk/id/local-authority/29UP,Tonbridge & Malling Borough Council,6/16/2021,0021037199/1,21037199, 250.00,SWS Countryside & Landscape,01567200,,Health & Safety - Trees,Countryside/Woodland Mgt,B22LG000044045,
http://statistics.data.gov.uk/id/local-authority/29UP,Tonbridge & Malling Borough Council,6/16/2021,0021037201/1,21037201, 1186.68,SWS Countryside & Landscape,01567200,,Maintenance of Grounds,Sports Grounds,B13ET000020402,210056278
http://statistics.data.gov.uk/id/local-authority/29UP,Tonbridge & Malling Borough Council,6/16/2021,0021037202/1,21037202, 550.00,SWS Countryside & Landscape,01567200,,Health & Safety - Trees,Countryside/Woodland Mgt,B22LG000044045,210056301
http://statistics.data.gov.uk/id/local-authority/29UP,Tonbridge & Malling Borough Council,6/16/2021,0021037203/1,21037203, 80.00,SWS Countryside & Landscape,01567200,,Maintenance of Grounds,Open Spaces & Amenity Areas,B22LE000020402,210056232
http://statistics.data.gov.uk/id/local-authority/29UP,Tonbridge & Malling Borough Council,6/16/2021,0021037204/1,21037204, 1200.00,SWS Countryside & Landscape,01567200,,Health & Safety - Trees,Countryside/Woodland Mgt,B22LG000044045,210056217
http://statistics.data.gov.uk/id/local-authority/29UP,Tonbridge & Malling Borough Council,6/16/2021,0021037205/1,21037205, 16100.00,Lister Wilder ,01680100,,Initial Furniture & Equipment,Capital Renewals Leisure,P05KGBC0509906,210056138
http://statistics.data.gov.uk/id/local-authority/29UP,Tonbridge & Malling Borough Council,6/16/2021,0021037206/1,21037206, 112.25,Boxley Timber and Fencing Supplies Ltd,01707200,,Maintenance of Grounds,Leybourne Lakes Country Park,B22LK000020402,210056299
http://statistics.data.gov.uk/id/local-authority/29UP,Tonbridge & Malling Borough Council,6/16/2021,0021037207/1,21037207, 140.00,Weddle and Co,00714900,,Maintenance of Play Equipment,Open Spaces & Amenity Areas,B22LE000020503,210056317
http://statistics.data.gov.uk/id/local-authority/29UP,Tonbridge & Malling Borough Council,6/16/2021,0021037208/1,21037208, 688.00,Spy Alarms Ltd,01608800,,Gates / Security,Leybourne Lakes Country Park,B22LK000044017,210056326
http://statistics.data.gov.uk/id/local-authority/29UP,Tonbridge & Malling Borough Council,6/16/2021,0021037210/3,21037210, 37.05,B&Q/Screwfix Direct,00141300,,Purchases,Leybourne Lakes Country Park,B22LK000040101,
http://statistics.data.gov.uk/id/local-authority/29UP,Tonbridge & Malling Borough Council,6/16/2021,0021037211/3,21037211, 4.92,B&Q/Screwfix Direct,00141300,,Purchases,Leybourne Lakes Country Park,B22LK000040101,
http://statistics.data.gov.uk/id/local-authority/29UP,Tonbridge & Malling Borough Council,6/16/2021,0021037212/1,21037212, 75.00,Flash Mobile Welding Services Ltd,01189200,,Maintenance of Play Equipment,Open Spaces & Amenity Areas,B22LE000020503,210056330
http://statistics.data.gov.uk/id/local-authority/29UP,Tonbridge & Malling Borough Council,6/16/2021,0021037213/1,21037213, 125.00,Flash Mobile Welding Services Ltd,01189200,,Maintenance of Play Equipment,Open Spaces & Amenity Areas,B22LE000020503,210056331
http://statistics.data.gov.uk/id/local-authority/29UP,Tonbridge & Malling Borough Council,6/16/2021,0021037214/1,21037214, 55.00,Landscape Services Ltd,00057600,,Maintenance of Grounds,Sports Grounds,B13ET000020402,210056314
http://statistics.data.gov.uk/id/local-authority/29UP,Tonbridge & Malling Borough Council,6/16/2021,0021037215/1,21037215, 171.00,C & J Workwear ,01571300,,Protective Clothing,Leybourne Lakes Country Park,B22LK000042001,210056282
http://statistics.data.gov.uk/id/local-authority/29UP,Tonbridge & Malling Borough Council,6/16/2021,0021037216/1,21037216, 110.00,Fenland Leisure Products Ltd,01675100,,Maintenance of Play Equipment,Open Spaces & Amenity Areas,B22LE000020503,210056205
http://statistics.data.gov.uk/id/local-authority/29UP,Tonbridge & Malling Borough Council,6/16/2021,0021037217/3,21037217, 600.00,Atlas Facilities Managment Limited ,01075900,,Gates / Security,Patrolling,B22LF000044017,
http://statistics.data.gov.uk/id/local-authority/29UP,Tonbridge & Malling Borough Council,6/16/2021,0021037218/3,21037218, 740.40,Atlas Facilities Managment Limited ,01075900,,Gates / Security,Leybourne Lakes Country Park,B22LK000044017,
http://statistics.data.gov.uk/id/local-authority/29UP,Tonbridge & Malling Borough Council,6/16/2021,0022025504/1,22025504, 5794.92,Adaptec Mobilty Ltd,01785800,,Other Expenses,Disabled Facilities Grant Mand,P03AC000009908,
http://statistics.data.gov.uk/id/local-authority/29UP,Tonbridge & Malling Borough Council,6/16/2021,0022025505/1,22025505, 834.47,Peabody South East LTD,01680900,,Other Expenses,Disabled Facilities Grant Mand,P03AC000009908,
http://statistics.data.gov.uk/id/local-authority/29UP,Tonbridge & Malling Borough Council,6/16/2021,0022025506/1,22025506, 6329.57,All Home Services Ltd,01802400,,Other Expenses,Disabled Facilities Grant Mand,P03AC000009908,
http://statistics.data.gov.uk/id/local-authority/29UP,Tonbridge & Malling Borough Council,6/16/2021,0022025507/3,22025507, 154.77,Bulb Energy Ltd,01799000,214948301,Electricity,Homelessness,C01AA000021002,
http://statistics.data.gov.uk/id/local-authority/29UP,Tonbridge & Malling Borough Council,6/16/2021,0022025508/1,22025508, 4057.79,Clarion Housing,01776300,,Temporary Accommodation,Homelessness,C01AA000044051,
http://statistics.data.gov.uk/id/local-authority/29UP,Tonbridge & Malling Borough Council,6/16/2021,0022025509/3,22025509, 495.00,KH Recruitment Ltd,01738900,,Temporary Staff,St Scene & Leis Sals&Overheads,D01AGDG3011300,
http://statistics.data.gov.uk/id/local-authority/29UP,Tonbridge & Malling Borough Council,6/16/2021,0022025511/3,22025511, 216.00,Monitor Pest Control Ltd,01476700,,Other Expenses,Pest Control,H24SE000048010,
http://statistics.data.gov.uk/id/local-authority/29UP,Tonbridge & Malling Borough Council,6/16/2021,0022025512/3,22025512, 469.00,Vivid Resourcing,01773700,,Temporary Staff,Env Hlth & Hsg Sals&Overheads,D01AVDV0911300,
http://statistics.data.gov.uk/id/local-authority/29UP,Tonbridge & Malling Borough Council,6/16/2021,0022025513/3,22025513, 1085.14,Vivid Resourcing,01773700,,Temporary Staff,Env Hlth & Hsg Sals&Overheads,D01AVDV0911300,
http://statistics.data.gov.uk/id/local-authority/29UP,Tonbridge & Malling Borough Council,6/16/2021,0022025514/1,22025514, 7998.00,Kent Accommodation Ltd,01722000,,Temporary Accommodation,Homelessness,C01AA000044051,
http://statistics.data.gov.uk/id/local-authority/29UP,Tonbridge & Malling Borough Council,6/16/2021,0022025515/1,22025515, 950.00,Stiles Harold Williams LLP,01721700,,Temporary Accommodation,Homelessness,C01AA000044051,
http://statistics.data.gov.uk/id/local-authority/29UP,Tonbridge & Malling Borough Council,6/16/2021,0022025516/3,22025516, 740.00,G2 Recruitment Solutions,01786000,,Temporary Staff,Env Hlth & Hsg Sals&Overheads,D01AVDV0711300,
http://statistics.data.gov.uk/id/local-authority/29UP,Tonbridge & Malling Borough Council,6/16/2021,0022025517/3,22025517, 1959.00,Lucy and Martin Recycling LTD,01694200,,Vehicle Licences,Dry Recycling,H34SR000030105,
http://statistics.data.gov.uk/id/local-authority/29UP,Tonbridge & Malling Borough Council,6/16/2021,0022025518/1,22025518, 2.30,KCS,00054200,,Stationery,Env Hlth & Hsg Sals&Overheads,D01AVDV0643003,220003115
http://statistics.data.gov.uk/id/local-authority/29UP,Tonbridge & Malling Borough Council,6/16/2021,0022025518/2,22025518, 6.70,KCS,00054200,,Stationery,Env Hlth & Hsg Sals&Overheads,D01AVDV0643003,220003115
http://statistics.data.gov.uk/id/local-authority/29UP,Tonbridge & Malling Borough Council,6/16/2021,0022025518/3,22025518, 7.70,KCS,00054200,,Stationery,Env Hlth & Hsg Sals&Overheads,D01AVDV0643003,220003115
http://statistics.data.gov.uk/id/local-authority/29UP,Tonbridge & Malling Borough Council,6/16/2021,0022025518/4,22025518, 3.05,KCS,00054200,,Stationery,Env Hlth & Hsg Sals&Overheads,D01AVDV0643003,220003115
http://statistics.data.gov.uk/id/local-authority/29UP,Tonbridge & Malling Borough Council,6/16/2021,0022025518/5,22025518, 7.45,KCS,00054200,,Stationery,Env Hlth & Hsg Sals&Overheads,D01AVDV0643003,220003115
http://statistics.data.gov.uk/id/local-authority/29UP,Tonbridge & Malling Borough Council,6/16/2021,0022025518/6,22025518, 7.45,KCS,00054200,,Stationery,Env Hlth & Hsg Sals&Overheads,D01AVDV0643003,220003115
http://statistics.data.gov.uk/id/local-authority/29UP,Tonbridge & Malling Borough Council,6/16/2021,0022025519/3,22025519, 36.00,Streamline (Kent) Limited,01043100,,Public Transport,Homelessness,C01AA000033001,
http://statistics.data.gov.uk/id/local-authority/29UP,Tonbridge & Malling Borough Council,6/16/2021,0022025520/3,22025520, 819.00,STM Environmental Consultants Limited,01552600,,Contaminated Land Site Inspect,Environmental Protection,H32SN000054018,
http://statistics.data.gov.uk/id/local-authority/29UP,Tonbridge & Malling Borough Council,6/16/2021,0022025521/1,22025521, 876.66,Scottish Water Business Stream Ltd,01641100,,Sewerage Charges,Public Conveniences,H22SCH01224003,
http://statistics.data.gov.uk/id/local-authority/29UP,Tonbridge & Malling Borough Council,6/16/2021,0022025522/1,22025522, 121.00,Hach Lange Ltd,01713100,,Maintenance - General,Environmental Protection,H32SN000040135,220003116
http://statistics.data.gov.uk/id/local-authority/29UP,Tonbridge & Malling Borough Council,6/16/2021,0031017978/1,31017978, 410.00,Wellden Land Surveys,01410600,,Professional Fees,Boro Drainage & Land Drainage,E20MA000044001,310042644
http://statistics.data.gov.uk/id/local-authority/29UP,Tonbridge & Malling Borough Council,6/16/2021,0031017981/3,31017981, 44.61,KCC - L.A.S.E.R Commercial Services ,00184300,,Electricity,Parking Off-Street,E10HA000021002,
http://statistics.data.gov.uk/id/local-authority/29UP,Tonbridge & Malling Borough Council,6/16/2021,0031017982/3,31017982, 68.32,KCC - L.A.S.E.R Commercial Services ,00184300,,Electricity,Parking Off-Street,E10HA000021002,
http://statistics.data.gov.uk/id/local-authority/29UP,Tonbridge & Malling Borough Council,6/16/2021,0031017983/3,31017983, 24.50,KCC - L.A.S.E.R Commercial Services ,00184300,,Electricity,Parking Off-Street,E10HA000021002,
http://statistics.data.gov.uk/id/local-authority/29UP,Tonbridge & Malling Borough Council,6/16/2021,0031017989/1,31017989, 3912.41,Chroma Vision Ltd,00891600,,Maintenance - General,Security Services Management,E09GA000040135,310042668
http://statistics.data.gov.uk/id/local-authority/29UP,Tonbridge & Malling Borough Council,6/16/2021,0031017990/1,31017990, 485.29,PSR Lighting & Signs Ltd,01265400,,Premises Repairs & Maintenance,Parking Off-Street,E10HA000020601,210056315
http://statistics.data.gov.uk/id/local-authority/29UP,Tonbridge & Malling Borough Council,6/16/2021,0031017990/2,31017990, 616.00,PSR Lighting & Signs Ltd,01265400,,BRREP Servicing-CarParkLightg,Larkfield Leisure Centre,M15HDP20001944,210056315
http://statistics.data.gov.uk/id/local-authority/29UP,Tonbridge & Malling Borough Council,6/16/2021,0031017990/3,31017990, 46.00,PSR Lighting & Signs Ltd,01265400,,BRREP Car Park mntce,Leis Man Poult Wood Golf Centr,M15HEP20001953,210056315
http://statistics.data.gov.uk/id/local-authority/29UP,Tonbridge & Malling Borough Council,6/16/2021,0031017990/4,31017990, 308.00,PSR Lighting & Signs Ltd,01265400,,BRREP Servicing - ext lighting,Gibson Building East,M15KGP20001941,210056315
http://statistics.data.gov.uk/id/local-authority/29UP,Tonbridge & Malling Borough Council,6/16/2021,0031017991/1,31017991, 249.55,PSR Lighting & Signs Ltd,01265400,,Electricity,Open Spaces & Amenity Areas,B22LE000021002,310042615
http://statistics.data.gov.uk/id/local-authority/29UP,Tonbridge & Malling Borough Council,6/16/2021,0031017991/2,31017991, 3255.00,PSR Lighting & Signs Ltd,01265400,,Premises Repairs & Maintenance,Parking Off-Street,E10HA000020601,310042615
http://statistics.data.gov.uk/id/local-authority/29UP,Tonbridge & Malling Borough Council,6/16/2021,0031017991/3,31017991, 347.20,PSR Lighting & Signs Ltd,01265400,,BRREP Servicing-CarParkLightg,Larkfield Leisure Centre,M15HDP20001944,310042615
http://statistics.data.gov.uk/id/local-authority/29UP,Tonbridge & Malling Borough Council,6/16/2021,0031017991/4,31017991, 65.10,PSR Lighting & Signs Ltd,01265400,,BRREP Servicing - ext lighting,Leis Man Poult Wood Golf Centr,M15HEP20001941,310042615
http://statistics.data.gov.uk/id/local-authority/29UP,Tonbridge & Malling Borough Council,6/16/2021,0031017991/5,31017991, 162.75,PSR Lighting & Signs Ltd,01265400,,BRREP Servicing - ext lighting,Kings Hill Offices - Ext Areas,M15KAP20001941,310042615
http://statistics.data.gov.uk/id/local-authority/29UP,Tonbridge & Malling Borough Council,6/16/2021,0031017991/6,31017991, 108.50,PSR Lighting & Signs Ltd,01265400,,BRREP Servicing - ext lighting,Tonbridge Castle / CAB,M15KFP20001941,310042615
http://statistics.data.gov.uk/id/local-authority/29UP,Tonbridge & Malling Borough Council,6/16/2021,0032009141/1,32009141, 660.00,G2 Recruitment Solutions,01786000,,Temporary Staff,Planning Sals&Overheads,D01AJDJ0111300,320003308
http://statistics.data.gov.uk/id/local-authority/29UP,Tonbridge & Malling Borough Council,6/16/2021,0032009145/1,32009145, 208.20,KM Media Group Ltd,00053900,,Advertising General,Development Management,A01ABZ99944216,310042661
http://statistics.data.gov.uk/id/local-authority/29UP,Tonbridge & Malling Borough Council,6/16/2021,0032009147/1,32009147, 750.00,Charles & Associates,01739200,,Application & Appeals,Development Management,A01AB000044194,320003297
http://statistics.data.gov.uk/id/local-authority/29UP,Tonbridge & Malling Borough Council,6/16/2021,0041033138/3,41033138, 720.00,Morgan Hunt UK Ltd,01086900,,Temporary Staff,Finance Sals&Overheads,D01AFDF1111300,
http://statistics.data.gov.uk/id/local-authority/29UP,Tonbridge & Malling Borough Council,6/16/2021,0041033139/3,41033139, 766.84,Morgan Hunt UK Ltd,01086900,,Temporary Staff,Finance Sals&Overheads,D01AFDF1111300,
http://statistics.data.gov.uk/id/local-authority/29UP,Tonbridge & Malling Borough Council,6/16/2021,0041033141/1,41033141, 846.50,KCC re Kent Pension Fund,01282800,,Professional Fees,Public Accountability,D29LR000044001,
http://statistics.data.gov.uk/id/local-authority/29UP,Tonbridge & Malling Borough Council,6/18/2021,0041033159/1,41033159, 5.70,HSBC Bank Plc,01740800,,Bank Charges,Banking Arrangements,D43QK000044222,
http://statistics.data.gov.uk/id/local-authority/29UP,Tonbridge & Malling Borough Council,6/21/2021,0041033158/10,41033158, 277.50,National Westminster Bank Plc,00894500,,Vehicle Licences,Patrolling,B22LF000030105,
http://statistics.data.gov.uk/id/local-authority/29UP,Tonbridge & Malling Borough Council,6/21/2021,0041033158/11,41033158, 17.27,National Westminster Bank Plc,00894500,,First Aid Equipment,Admin & Prop Sals&Overheads,D01AA000042006,
http://statistics.data.gov.uk/id/local-authority/29UP,Tonbridge & Malling Borough Council,6/21/2021,0041033158/12,41033158, 107.98,National Westminster Bank Plc,00894500,,Purchases,Env Hlth & Hsg Sals&Overheads,D01AVDV0940101,
http://statistics.data.gov.uk/id/local-authority/29UP,Tonbridge & Malling Borough Council,6/21/2021,0041033158/13,41033158, 284.58,National Westminster Bank Plc,00894500,,Purchases,Env Hlth & Hsg Sals&Overheads,D01AVDV0940101,
http://statistics.data.gov.uk/id/local-authority/29UP,Tonbridge & Malling Borough Council,6/21/2021,0041033158/14,41033158, 99.00,National Westminster Bank Plc,00894500,,Ext Fees/Prof & Tech,Training,D10DCDV0913561,
http://statistics.data.gov.uk/id/local-authority/29UP,Tonbridge & Malling Borough Council,6/21/2021,0041033158/20,41033158, 41.97,National Westminster Bank Plc,00894500,,Other Expenses,Mayoral & Other Member Support,D29LX000048010,
http://statistics.data.gov.uk/id/local-authority/29UP,Tonbridge & Malling Borough Council,6/21/2021,0041033158/21,41033158, 27.90,National Westminster Bank Plc,00894500,,Other Expenses,Mayoral & Other Member Support,D29LX000048010,
http://statistics.data.gov.uk/id/local-authority/29UP,Tonbridge & Malling Borough Council,6/21/2021,0041033158/22,41033158, 246.00,National Westminster Bank Plc,00894500,,Legal Fees,Local Revenue & NNDR Collect,D41QA000044002,
http://statistics.data.gov.uk/id/local-authority/29UP,Tonbridge & Malling Borough Council,6/21/2021,0041033158/23,41033158, 1.20,National Westminster Bank Plc,00894500,,Bank Charges,Banking Arrangements,D43QK000044222,
http://statistics.data.gov.uk/id/local-authority/29UP,Tonbridge & Malling Borough Council,6/21/2021,0041033158/24,41033158, 14.58,National Westminster Bank Plc,00894500,,Bank Charges,Banking Arrangements,D43QK000044222,
http://statistics.data.gov.uk/id/local-authority/29UP,Tonbridge & Malling Borough Council,6/21/2021,0041033158/25,41033158, 137.00,National Westminster Bank Plc,00894500,,Transport Repair & Maintenance,Parking Off-Street,E10HA000030103,
http://statistics.data.gov.uk/id/local-authority/29UP,Tonbridge & Malling Borough Council,6/21/2021,0041033158/26,41033158, 205.50,National Westminster Bank Plc,00894500,,Transport Repair & Maintenance,Parking On-Street,E10HD000030103,
http://statistics.data.gov.uk/id/local-authority/29UP,Tonbridge & Malling Borough Council,6/21/2021,0041033158/27,41033158, 29.97,National Westminster Bank Plc,00894500,,Sales,TIC Stock Account,K18AX000002002,
http://statistics.data.gov.uk/id/local-authority/29UP,Tonbridge & Malling Borough Council,6/21/2021,0041033158/28,41033158, 9.99,National Westminster Bank Plc,00894500,,Sales,TIC Stock Account,K18AX000002002,
http://statistics.data.gov.uk/id/local-authority/29UP,Tonbridge & Malling Borough Council,6/21/2021,0041033158/29,41033158, 39.96,National Westminster Bank Plc,00894500,,Sales,TIC Stock Account,K18AX000002002,
http://statistics.data.gov.uk/id/local-authority/29UP,Tonbridge & Malling Borough Council,6/21/2021,0041033158/30,41033158, 20.98,National Westminster Bank Plc,00894500,,Sales,TIC Stock Account,K18AX000002002,
http://statistics.data.gov.uk/id/local-authority/29UP,Tonbridge & Malling Borough Council,6/21/2021,0041033162/1,41033162, 62.77,Utax UK Ltd,01658500,642302771,Copy Charges,Multi Function Devices,D22GB000040125,
http://statistics.data.gov.uk/id/local-authority/29UP,Tonbridge & Malling Borough Council,6/21/2021,0041033163/1,41033163, 15.00,WorldPay ,01568000,,Credit Card Commission,Banking Arrangements,D43QK000044082,
http://statistics.data.gov.uk/id/local-authority/29UP,Tonbridge & Malling Borough Council,6/21/2021,0041033164/1,41033164, 140.83,WorldPay ,01568000,,Credit Card Commission,Banking Arrangements,D43QK000044082,
http://statistics.data.gov.uk/id/local-authority/29UP,Tonbridge & Malling Borough Council,6/21/2021,0041033165/1,41033165, 1010.21,WorldPay ,01568000,,Credit Card Commission,Banking Arrangements,D43QK000044082,
http://statistics.data.gov.uk/id/local-authority/29UP,Tonbridge & Malling Borough Council,6/21/2021,0041033166/1,41033166, 2347.95,WorldPay ,01568000,,Credit Card Commission,Banking Arrangements,D43QK000044082,
http://statistics.data.gov.uk/id/local-authority/29UP,Tonbridge & Malling Borough Council,6/21/2021,0041033166/2,41033166, 194.89,WorldPay ,01568000,,Credit Card Commission,Banking Arrangements,D43QK000044082,
http://statistics.data.gov.uk/id/local-authority/29UP,Tonbridge & Malling Borough Council,6/21/2021,0041033168/1,41033168, 2300.00,H.M. Revenue & Customs,00048400,,Levy Payment,Apprenticeship Scheme,D10DE000013700,
http://statistics.data.gov.uk/id/local-authority/29UP,Tonbridge & Malling Borough Council,6/22/2021,0041033170/1,41033170, 4544.40,GoNative.io LLC,01803400,,Software Hire & Support,Information Technology,D27KD000044059,
http://statistics.data.gov.uk/id/local-authority/29UP,Tonbridge & Malling Borough Council,6/22/2021,0041033174/1,41033174, 50.00,National Westminster Bank Plc,00069400,,Direct Debit / Bank Charges,Local Revenue & NNDR Collect,D41QA000044079,
http://statistics.data.gov.uk/id/local-authority/29UP,Tonbridge & Malling Borough Council,6/22/2021,0041033175/1,41033175, 255.00,National Westminster Bank Plc,00069400,,Bank Charges,Banking Arrangements,D43QK000044222,
http://statistics.data.gov.uk/id/local-authority/29UP,Tonbridge & Malling Borough Council,6/22/2021,0041033176/1,41033176, 20.03,WorldPay Ltd,01402000,991280207,Credit Card Commission,Banking Arrangements,D43QK000044082,
http://statistics.data.gov.uk/id/local-authority/29UP,Tonbridge & Malling Borough Council,6/23/2021,0011042765/1,11042765, 791.67,VIPSystem Ltd,01422600,,Purchases,Licences - Fee Paying,H27SH000040101,110069047
http://statistics.data.gov.uk/id/local-authority/29UP,Tonbridge & Malling Borough Council,6/23/2021,0011042765/2,11042765, 729.93,VIPSystem Ltd,01422600,,Purchases,Licences - Fee Paying,H27SH000040101,110069047
http://statistics.data.gov.uk/id/local-authority/29UP,Tonbridge & Malling Borough Council,6/23/2021,0011042765/3,11042765, 128.54,VIPSystem Ltd,01422600,,Purchases,Licences - Fee Paying,H27SH000040101,110069047
http://statistics.data.gov.uk/id/local-authority/29UP,Tonbridge & Malling Borough Council,6/23/2021,0011042765/4,11042765, 128.54,VIPSystem Ltd,01422600,,Purchases,Licences - Fee Paying,H27SH000040101,110069047
http://statistics.data.gov.uk/id/local-authority/29UP,Tonbridge & Malling Borough Council,6/23/2021,0011042765/5,11042765, 104.98,VIPSystem Ltd,01422600,,Purchases,Licences - Fee Paying,H27SH000040101,110069047
http://statistics.data.gov.uk/id/local-authority/29UP,Tonbridge & Malling Borough Council,6/23/2021,0011042765/6,11042765, 51.98,VIPSystem Ltd,01422600,,Purchases,Licences - Fee Paying,H27SH000040101,110069047
http://statistics.data.gov.uk/id/local-authority/29UP,Tonbridge & Malling Borough Council,6/23/2021,0011042765/7,11042765, 43.05,VIPSystem Ltd,01422600,,Purchases,Licences - Fee Paying,H27SH000040101,110069047
http://statistics.data.gov.uk/id/local-authority/29UP,Tonbridge & Malling Borough Council,6/23/2021,0011042765/8,11042765, 129.15,VIPSystem Ltd,01422600,,Purchases,Licences - Fee Paying,H27SH000040101,110069047
http://statistics.data.gov.uk/id/local-authority/29UP,Tonbridge & Malling Borough Council,6/23/2021,0011042766/1,11042766, 68.00,K T Fire Protection Ltd,00057000,,BRREP Emergency light discharg,Tonbridge Castle Gatehouse,M15HKP30001980,110069077
http://statistics.data.gov.uk/id/local-authority/29UP,Tonbridge & Malling Borough Council,6/23/2021,0011042767/1,11042767, 224.75,K T Fire Protection Ltd,00057000,,BRREP Emergency light discharg,Larkfield Leisure Centre,M15HDP30001980,110069077
http://statistics.data.gov.uk/id/local-authority/29UP,Tonbridge & Malling Borough Council,6/23/2021,0011042768/1,11042768, 68.00,K T Fire Protection Ltd,00057000,,BRREP Emergency light discharg,Tonbridge Castle / CAB,M15KFP30001980,110069077
http://statistics.data.gov.uk/id/local-authority/29UP,Tonbridge & Malling Borough Council,6/23/2021,0011042769/1,11042769, 1650.00,TMD Services,01719600,,BRREP Slipstream flume ovrhaul,Larkfield Leisure Centre,M15HDP20001954,110068906
http://statistics.data.gov.uk/id/local-authority/29UP,Tonbridge & Malling Borough Council,6/23/2021,0011042770/1,11042770, 80.00,Latch & Locksmith,01802000,,BRREP Response - General,Pleasure Grounds & Open Spaces,M15HHP50001997,110069078
http://statistics.data.gov.uk/id/local-authority/29UP,Tonbridge & Malling Borough Council,6/23/2021,0011042771/1,11042771, 195.00,PV Environmental Surveys,00987200,,BRREP Asbestos monitoring,Angel Centre,M15HAP30001993,110069081
http://statistics.data.gov.uk/id/local-authority/29UP,Tonbridge & Malling Borough Council,6/23/2021,0011042772/1,11042772, 55.00,Triple S Lift Services,01344900,,BRREP Servicing - lifts,Angel Centre,M15HAP20001930,110068599
http://statistics.data.gov.uk/id/local-authority/29UP,Tonbridge & Malling Borough Council,6/23/2021,0011042772/2,11042772, 55.00,Triple S Lift Services,01344900,,BRREP Servicing - lifts,Angel Centre,M15HAP20001930,110068599
http://statistics.data.gov.uk/id/local-authority/29UP,Tonbridge & Malling Borough Council,6/23/2021,0011042773/1,11042773, 185.00,Green Fish Consulting,01627700,,BRREP Energy Efficiency Regs,Shops & Maisonettes,M15NAP30001976,110069067
http://statistics.data.gov.uk/id/local-authority/29UP,Tonbridge & Malling Borough Council,6/23/2021,0011042774/1,11042774, 1380.99,Atac Solutions LTD,01558800,,BRREP LeybourneCP SewageDigest,Pleasure Grounds & Open Spaces,M15HHP20001961,110069049
http://statistics.data.gov.uk/id/local-authority/29UP,Tonbridge & Malling Borough Council,6/23/2021,0011042775/1,11042775, 6000.00,KCS,00054200,,Purchases,Admin & Prop Sals&Overheads,D01AA000040101,110068596
http://statistics.data.gov.uk/id/local-authority/29UP,Tonbridge & Malling Borough Council,6/23/2021,0011042776/1,11042776, 2452.61,Chubb Fire & Security Ltd,00115400,174605362,BRREP Servicing-IntruderAlarm,Angel Centre,M15HAP20001939,110069079
http://statistics.data.gov.uk/id/local-authority/29UP,Tonbridge & Malling Borough Council,6/23/2021,0011042777/1,11042777, 160.00,Automated Limited,00007000,,BRREP Response - General,Angel Centre,M15HAP50001997,110069058
http://statistics.data.gov.uk/id/local-authority/29UP,Tonbridge & Malling Borough Council,6/23/2021,0011042778/1,11042778, 368.00,K T Fire Protection Ltd,00057000,,BRREP Emergency light discharg,Leis Man Poult Wood Golf Centr,M15HEP30001980,110069077
http://statistics.data.gov.uk/id/local-authority/29UP,Tonbridge & Malling Borough Council,6/23/2021,0011042779/1,11042779, 78.50,Triple S Lift Services,01344900,,BRREP Servicing - lifts,Gibson Building East,M15KGP20001930,110068893
http://statistics.data.gov.uk/id/local-authority/29UP,Tonbridge & Malling Borough Council,6/23/2021,0011042780/1,11042780, 150.00,BML Building Services Ltd,01505000,,BRREP Response - General,Leis Man Poult Wood Golf Centr,M15HEP50001997,110069027
http://statistics.data.gov.uk/id/local-authority/29UP,Tonbridge & Malling Borough Council,6/23/2021,0011042781/1,11042781, 56.00,Willow Pumps Ltd,00114100,,BRREP Servicing - Pumping Stn,Tonbridge Swimming Pool,M15HBP20001931,110068675
http://statistics.data.gov.uk/id/local-authority/29UP,Tonbridge & Malling Borough Council,6/23/2021,0011042781/2,11042781, 112.00,Willow Pumps Ltd,00114100,,BRREP Servicing - Pumping Stn,Ton Sportsgrnd Bldgs / Toilets,M15HCP20001931,110068675
http://statistics.data.gov.uk/id/local-authority/29UP,Tonbridge & Malling Borough Council,6/23/2021,0011042781/3,11042781, 112.00,Willow Pumps Ltd,00114100,,BRREP Servicing - Pumping Stn,Vale Rise Depot,M15LCP20001931,110068675
http://statistics.data.gov.uk/id/local-authority/29UP,Tonbridge & Malling Borough Council,6/23/2021,0011042782/1,11042782, 1668.00,Loxton Installations Ltd,01278800,,BRREP Serv Internal Lighting,Tonbridge Castle / CAB,M15KFP20001957,110069076
http://statistics.data.gov.uk/id/local-authority/29UP,Tonbridge & Malling Borough Council,6/23/2021,0011042783/1,11042783, 4179.00,TMS Protection Ltd,01744300,,Re-opening High Streets,Eco Dev & Reg Gen Bus Support,D52TDCV1948076,
http://statistics.data.gov.uk/id/local-authority/29UP,Tonbridge & Malling Borough Council,6/23/2021,0011042784/1,11042784, 955.12,Prosec General Security Ltd,00810600,,Office Security,Cleaning & Security,D21FD000044047,
http://statistics.data.gov.uk/id/local-authority/29UP,Tonbridge & Malling Borough Council,6/23/2021,0011042784/2,11042784, 2619.00,Prosec General Security Ltd,00810600,,Office Security,Tonbridge Gateway,D23TG000044047,
http://statistics.data.gov.uk/id/local-authority/29UP,Tonbridge & Malling Borough Council,6/23/2021,0011042785/1,11042785, 1600.10,GSF SANDYLIGHT LTD,01705300,,Temporary Staff,Admin & Prop Sals&Overheads,D01AADA0511300,
http://statistics.data.gov.uk/id/local-authority/29UP,Tonbridge & Malling Borough Council,6/23/2021,0011042786/1,11042786, 750.00,Seven Star Media,01804000,,Marketing,Tonbridge Castle Gatehouse,B40TG000044215,
http://statistics.data.gov.uk/id/local-authority/29UP,Tonbridge & Malling Borough Council,6/23/2021,0011042788/1,11042788, 137.87,Viridor Waste Management Ltd,00682900,,Trade Refuse Charges,Cleaning & Security,D21FD000044008,
http://statistics.data.gov.uk/id/local-authority/29UP,Tonbridge & Malling Borough Council,6/23/2021,0011042789/1,11042789, 37.16,Viridor Waste Management Ltd,00682900,,Trade Refuse Charges,Cleaning & Security,D21FD000044008,
http://statistics.data.gov.uk/id/local-authority/29UP,Tonbridge & Malling Borough Council,6/23/2021,0011042790/3,11042790, 635.20,Canon (UK) Limited,00298700,,Purchases - Paper,Printing,D22GA000040102,
http://statistics.data.gov.uk/id/local-authority/29UP,Tonbridge & Malling Borough Council,6/23/2021,0011042791/1,11042791, 1316.67,Royal Mail,00086200,,Purchases,Mailsort Stock Account,K37BR000001002,
http://statistics.data.gov.uk/id/local-authority/29UP,Tonbridge & Malling Borough Council,6/23/2021,0011042792/1,11042792, 408.00,Tonbridge Historical Society,00458000,,Purchases,TIC Stock Account,K18AX000001002,
http://statistics.data.gov.uk/id/local-authority/29UP,Tonbridge & Malling Borough Council,6/23/2021,0011042793/1,11042793, 39.22,Atlas Facilities Managment Limited ,01075900,,Miscellaneous Services,Cleaning & Security,D21FDDD5044015,
http://statistics.data.gov.uk/id/local-authority/29UP,Tonbridge & Malling Borough Council,6/23/2021,0011042794/1,11042794, 78.44,Atlas Facilities Managment Limited ,01075900,,Miscellaneous Services,Cleaning & Security,D21FDDD6044015,
http://statistics.data.gov.uk/id/local-authority/29UP,Tonbridge & Malling Borough Council,6/23/2021,0011042795/1,11042795, 464.55,Viridor Waste Management Ltd,00682900,,Trade Refuse Charges,Cleaning & Security,D21FD000044008,
http://statistics.data.gov.uk/id/local-authority/29UP,Tonbridge & Malling Borough Council,6/23/2021,0011042796/1,11042796, 37.16,Viridor Waste Management Ltd,00682900,,Trade Refuse Charges,Cleaning & Security,D21FD000044008,
http://statistics.data.gov.uk/id/local-authority/29UP,Tonbridge & Malling Borough Council,6/23/2021,0011042798/1,11042798, 1488.07,KCS,00054200,,Gas,Buildings,D21FEDD1021003,
http://statistics.data.gov.uk/id/local-authority/29UP,Tonbridge & Malling Borough Council,6/23/2021,0011042800/1,11042800, 567.00,Venn Group Ltd,00914300,,Temporary Staff,Legal Sals&Overheads,D01ARDR0011300,
http://statistics.data.gov.uk/id/local-authority/29UP,Tonbridge & Malling Borough Council,6/23/2021,0011042801/1,11042801, 462.00,Venn Group Ltd,00914300,,Temporary Staff,Legal Sals&Overheads,D01ARDR0011300,
http://statistics.data.gov.uk/id/local-authority/29UP,Tonbridge & Malling Borough Council,6/23/2021,0011042802/1,11042802, 157.50,K T Fire Protection Ltd,00057000,,BRREP Servicing - FireAlarmSys,Larkfield Leisure Centre,M15HDP20001937,
http://statistics.data.gov.uk/id/local-authority/29UP,Tonbridge & Malling Borough Council,6/23/2021,0011042803/1,11042803, 258.00,BML Building Services Ltd,01505000,,BRREP Response - General,Larkfield Leisure Centre,M15HDP50001997,
http://statistics.data.gov.uk/id/local-authority/29UP,Tonbridge & Malling Borough Council,6/23/2021,0011042804/1,11042804, 416.18,KCS,00054200,,Gas,Buildings,D21FEDD1021003,
http://statistics.data.gov.uk/id/local-authority/29UP,Tonbridge & Malling Borough Council,6/23/2021,0011042805/1,11042805, 1872.53,KCS,00054200,,Electricity,Buildings,D21FEDD5021002,
http://statistics.data.gov.uk/id/local-authority/29UP,Tonbridge & Malling Borough Council,6/23/2021,0011042806/1,11042806, 3154.52,KCS,00054200,,Gas,Buildings,D21FEDD1021003,
http://statistics.data.gov.uk/id/local-authority/29UP,Tonbridge & Malling Borough Council,6/23/2021,0011042807/3,11042807, 1063.98,KCS,00054200,,Electricity,Buildings,D21FEDD6021002,
http://statistics.data.gov.uk/id/local-authority/29UP,Tonbridge & Malling Borough Council,6/23/2021,0011042808/3,11042808, 325.31,Initial Washroom Hygiene,00048300,,Laundry - Roller Towels,Cleaning & Security,D21FD000042003,
http://statistics.data.gov.uk/id/local-authority/29UP,Tonbridge & Malling Borough Council,6/23/2021,0011042809/3,11042809, 1121.05,KCS,00054200,,Gas,Buildings,D21FEDD1021003,
http://statistics.data.gov.uk/id/local-authority/29UP,Tonbridge & Malling Borough Council,6/23/2021,0011042810/1,11042810, 1496.84,Scottish Water Business Stream Ltd,01641100,,Sewerage Charges,Buildings,D21FEDD1024003,
http://statistics.data.gov.uk/id/local-authority/29UP,Tonbridge & Malling Borough Council,6/23/2021,0011042811/3,11042811, 1650.00,KH Recruitment Ltd,01738900,,Temporary Staff,Admin & Prop Sals&Overheads,D01AADA1211300,
http://statistics.data.gov.uk/id/local-authority/29UP,Tonbridge & Malling Borough Council,6/23/2021,0011042812/3,11042812, 57.60,Broadwater Technologies,01534500,,BRREP Plant renewals,Tonbridge Swimming Pool,M15HBP20001909,
http://statistics.data.gov.uk/id/local-authority/29UP,Tonbridge & Malling Borough Council,6/23/2021,0011042813/3,11042813, 206.97,Chubb Fire & Security Ltd,00115400,174605362,BRREP Servicing-IntruderAlarm,Tonbridge Swimming Pool,M15HBP20001939,
http://statistics.data.gov.uk/id/local-authority/29UP,Tonbridge & Malling Borough Council,6/23/2021,0011042814/3,11042814, 135.75,Antalis,01556800,,Purchases - Paper,Printing,D22GA000040102,
http://statistics.data.gov.uk/id/local-authority/29UP,Tonbridge & Malling Borough Council,6/23/2021,0011042817/3,11042817, 4179.00,TMS Protection Ltd,01744300,,Re-opening High Streets,Eco Dev & Reg Gen Bus Support,D52TDCV1948076,
http://statistics.data.gov.uk/id/local-authority/29UP,Tonbridge & Malling Borough Council,6/23/2021,0012008010/1,12008010, 843.30,Phoenix Software Ltd,00077400,755349015,Software Hire & Support,Information Technology,D27KD000044059,410031977
http://statistics.data.gov.uk/id/local-authority/29UP,Tonbridge & Malling Borough Council,6/23/2021,0012008010/2,12008010, 10.00,Phoenix Software Ltd,00077400,755349015,Delivery Expenses,Information Technology,D27KD000044069,410031977
http://statistics.data.gov.uk/id/local-authority/29UP,Tonbridge & Malling Borough Council,6/23/2021,0012008011/3,12008011, 1049.25,KH Recruitment Ltd,01738900,,Salaries & On Costs,Information Technology,D27KD000015100,
http://statistics.data.gov.uk/id/local-authority/29UP,Tonbridge & Malling Borough Council,6/23/2021,0012008012/3,12008012, 5811.35,Phoenix Software Ltd,00077400,755349015,Software Hire & Support,Information Technology,D27KD000044059,
http://statistics.data.gov.uk/id/local-authority/29UP,Tonbridge & Malling Borough Council,6/23/2021,0012008013/10,12008013, 3.00,O2 UK Ltd,01268000,,Mobile Telephones,Chief Exec Sals&Overheads,D01ACDC0245013,
http://statistics.data.gov.uk/id/local-authority/29UP,Tonbridge & Malling Borough Council,6/23/2021,0012008013/11,12008013, 3.00,O2 UK Ltd,01268000,,Mobile Telephones,Technical Sals&Overheads,D01AEDE0045013,
http://statistics.data.gov.uk/id/local-authority/29UP,Tonbridge & Malling Borough Council,6/23/2021,0012008013/12,12008013, 6.00,O2 UK Ltd,01268000,,Mobile Telephones,Technical Sals&Overheads,D01AEDE0145013,
http://statistics.data.gov.uk/id/local-authority/29UP,Tonbridge & Malling Borough Council,6/23/2021,0012008013/13,12008013, 9.00,O2 UK Ltd,01268000,,Mobile Telephones,Technical Sals&Overheads,D01AEDE0245013,
http://statistics.data.gov.uk/id/local-authority/29UP,Tonbridge & Malling Borough Council,6/23/2021,0012008013/14,12008013, 40.08,O2 UK Ltd,01268000,,Mobile Telephones,Technical Sals&Overheads,D01AEDE0445013,
http://statistics.data.gov.uk/id/local-authority/29UP,Tonbridge & Malling Borough Council,6/23/2021,0012008013/15,12008013, 3.00,O2 UK Ltd,01268000,,Mobile Telephones,Technical Sals&Overheads,D01AEDE0545013,
http://statistics.data.gov.uk/id/local-authority/29UP,Tonbridge & Malling Borough Council,6/23/2021,0012008013/16,12008013, 12.00,O2 UK Ltd,01268000,,Mobile Telephones,Finance Sals&Overheads,D01AFDF0045013,
http://statistics.data.gov.uk/id/local-authority/29UP,Tonbridge & Malling Borough Council,6/23/2021,0012008013/17,12008013, 9.00,O2 UK Ltd,01268000,,Mobile Telephones,Finance Sals&Overheads,D01AFDF0945013,
http://statistics.data.gov.uk/id/local-authority/29UP,Tonbridge & Malling Borough Council,6/23/2021,0012008013/18,12008013, 12.00,O2 UK Ltd,01268000,,Mobile Telephones,St Scene & Leis Sals&Overheads,D01AGDG0045013,
http://statistics.data.gov.uk/id/local-authority/29UP,Tonbridge & Malling Borough Council,6/23/2021,0012008013/19,12008013, 6.00,O2 UK Ltd,01268000,,Mobile Telephones,St Scene & Leis Sals&Overheads,D01AGDG0145013,
http://statistics.data.gov.uk/id/local-authority/29UP,Tonbridge & Malling Borough Council,6/23/2021,0012008013/20,12008013, 9.00,O2 UK Ltd,01268000,,Mobile Telephones,St Scene & Leis Sals&Overheads,D01AGDG0445013,
http://statistics.data.gov.uk/id/local-authority/29UP,Tonbridge & Malling Borough Council,6/23/2021,0012008013/21,12008013, 30.10,O2 UK Ltd,01268000,,Mobile Telephones,St Scene & Leis Sals&Overheads,D01AGDG2045013,
http://statistics.data.gov.uk/id/local-authority/29UP,Tonbridge & Malling Borough Council,6/23/2021,0012008013/22,12008013, 9.00,O2 UK Ltd,01268000,,Mobile Telephones,Planning Sals&Overheads,D01AJDJ0045013,
http://statistics.data.gov.uk/id/local-authority/29UP,Tonbridge & Malling Borough Council,6/23/2021,0012008013/23,12008013, 4.48,O2 UK Ltd,01268000,,Mobile Telephones,Planning Sals&Overheads,D01AJDJ0145013,
http://statistics.data.gov.uk/id/local-authority/29UP,Tonbridge & Malling Borough Council,6/23/2021,0012008013/24,12008013, 6.00,O2 UK Ltd,01268000,,Mobile Telephones,Legal Sals&Overheads,D01ARDR0045013,
http://statistics.data.gov.uk/id/local-authority/29UP,Tonbridge & Malling Borough Council,6/23/2021,0012008013/25,12008013, 12.08,O2 UK Ltd,01268000,,Mobile Telephones,Legal Sals&Overheads,D01ARDR0445013,
http://statistics.data.gov.uk/id/local-authority/29UP,Tonbridge & Malling Borough Council,6/23/2021,0012008013/26,12008013, 3.00,O2 UK Ltd,01268000,,Mobile Telephones,Legal Sals&Overheads,D01ARDR0745013,
http://statistics.data.gov.uk/id/local-authority/29UP,Tonbridge & Malling Borough Council,6/23/2021,0012008013/27,12008013, 3.00,O2 UK Ltd,01268000,,Mobile Telephones,Env Hlth & Hsg Sals&Overheads,D01AVDV0045013,
http://statistics.data.gov.uk/id/local-authority/29UP,Tonbridge & Malling Borough Council,6/23/2021,0012008013/28,12008013, 9.00,O2 UK Ltd,01268000,,Mobile Telephones,Env Hlth & Hsg Sals&Overheads,D01AVDV0145013,
http://statistics.data.gov.uk/id/local-authority/29UP,Tonbridge & Malling Borough Council,6/23/2021,0012008013/29,12008013, 6.00,O2 UK Ltd,01268000,,Mobile Telephones,Env Hlth & Hsg Sals&Overheads,D01AVDV0345013,
http://statistics.data.gov.uk/id/local-authority/29UP,Tonbridge & Malling Borough Council,6/23/2021,0012008013/3,12008013, 3.00,O2 UK Ltd,01268000,,Telephones - General,Open Spaces & Amenity Areas,B22LE000045010,
http://statistics.data.gov.uk/id/local-authority/29UP,Tonbridge & Malling Borough Council,6/23/2021,0012008013/30,12008013, 16.04,O2 UK Ltd,01268000,,Mobile Telephones,Customer Services,D23CS000045013,
http://statistics.data.gov.uk/id/local-authority/29UP,Tonbridge & Malling Borough Council,6/23/2021,0012008013/31,12008013, 3.00,O2 UK Ltd,01268000,,Mobile Telephones,Tonbridge Gateway,D23TG000045013,
http://statistics.data.gov.uk/id/local-authority/29UP,Tonbridge & Malling Borough Council,6/23/2021,0012008013/32,12008013, 624.00,O2 UK Ltd,01268000,,Leased Lines & Modems,Information Technology,D27KD000045011,
http://statistics.data.gov.uk/id/local-authority/29UP,Tonbridge & Malling Borough Council,6/23/2021,0012008013/33,12008013, 3.00,O2 UK Ltd,01268000,,Mobile Telephones,Mayoral & Other Member Support,D29LX000045013,
http://statistics.data.gov.uk/id/local-authority/29UP,Tonbridge & Malling Borough Council,6/23/2021,0012008013/34,12008013, 3.00,O2 UK Ltd,01268000,,Emergency Out of Hours Recharg,Refuse Collection,H20SA000045030,
http://statistics.data.gov.uk/id/local-authority/29UP,Tonbridge & Malling Borough Council,6/23/2021,0012008013/35,12008013, 3.00,O2 UK Ltd,01268000,,Emergency Out of Hours Recharg,Street Scene,H23SD000045030,
http://statistics.data.gov.uk/id/local-authority/29UP,Tonbridge & Malling Borough Council,6/23/2021,0012008013/4,12008013, 6.00,O2 UK Ltd,01268000,,Telephones - General,Leybourne Lakes Country Park,B22LK000045010,
http://statistics.data.gov.uk/id/local-authority/29UP,Tonbridge & Malling Borough Council,6/23/2021,0012008013/5,12008013, 6.00,O2 UK Ltd,01268000,,Mobile Telephones,Admin & Prop Sals&Overheads,D01AADA0045013,
http://statistics.data.gov.uk/id/local-authority/29UP,Tonbridge & Malling Borough Council,6/23/2021,0012008013/6,12008013, 6.00,O2 UK Ltd,01268000,,Mobile Telephones,Admin & Prop Sals&Overheads,D01AADA1045013,
http://statistics.data.gov.uk/id/local-authority/29UP,Tonbridge & Malling Borough Council,6/23/2021,0012008013/7,12008013, 3.00,O2 UK Ltd,01268000,,Mobile Telephones,Admin & Prop Sals&Overheads,D01AADA1245013,
http://statistics.data.gov.uk/id/local-authority/29UP,Tonbridge & Malling Borough Council,6/23/2021,0012008013/8,12008013, 3.00,O2 UK Ltd,01268000,,Mobile Telephones,Chief Exec Sals&Overheads,D01ACDC0045013,
http://statistics.data.gov.uk/id/local-authority/29UP,Tonbridge & Malling Borough Council,6/23/2021,0012008013/9,12008013, 3.00,O2 UK Ltd,01268000,,Mobile Telephones,Chief Exec Sals&Overheads,D01ACDC0145013,
http://statistics.data.gov.uk/id/local-authority/29UP,Tonbridge & Malling Borough Council,6/23/2021,0012008014/1,12008014, 849.95,CCS Media Ltd,00018000,,Purchases,Information Technology,D27KD000040101,410031978
http://statistics.data.gov.uk/id/local-authority/29UP,Tonbridge & Malling Borough Council,6/23/2021,0012008014/2,12008014, 2.00,CCS Media Ltd,00018000,,Delivery Expenses,Information Technology,D27KD000044069,410031978
http://statistics.data.gov.uk/id/local-authority/29UP,Tonbridge & Malling Borough Council,6/23/2021,0012008015/1,12008015, 13680.00,NEC Software Solutions UK Ltd,01073900,202159745,Software Hire & Support,Information Technology,D27KD000044059,410031976
http://statistics.data.gov.uk/id/local-authority/29UP,Tonbridge & Malling Borough Council,6/23/2021,0012008015/2,12008015, 4560.00,NEC Software Solutions UK Ltd,01073900,202159745,Software Hire & Support,Information Technology,D27KD000044059,410031976
http://statistics.data.gov.uk/id/local-authority/29UP,Tonbridge & Malling Borough Council,6/23/2021,0012008015/3,12008015, 3060.00,NEC Software Solutions UK Ltd,01073900,202159745,Software Hire & Support,Information Technology,D27KD000044059,410031976
http://statistics.data.gov.uk/id/local-authority/29UP,Tonbridge & Malling Borough Council,6/23/2021,0012008015/4,12008015, 5100.00,NEC Software Solutions UK Ltd,01073900,202159745,Software Hire & Support,Information Technology,D27KD000044059,410031976
http://statistics.data.gov.uk/id/local-authority/29UP,Tonbridge & Malling Borough Council,6/23/2021,0012008015/5,12008015, 13980.00,NEC Software Solutions UK Ltd,01073900,202159745,Software Hire & Support,Information Technology,D27KD000044059,410031976
http://statistics.data.gov.uk/id/local-authority/29UP,Tonbridge & Malling Borough Council,6/23/2021,0021037209/1,21037209, 632.96,Landscape Services Ltd,00057600,,Maintenance of Grounds,Sports Grounds,B13ET000020402,210056235
http://statistics.data.gov.uk/id/local-authority/29UP,Tonbridge & Malling Borough Council,6/23/2021,0021037219/1,21037219, 200.00,Rob Steele T/A Radii Skatepark Repairs,01683100,,Maintenance of Play Equipment,Open Spaces & Amenity Areas,B22LE000020503,210056328
http://statistics.data.gov.uk/id/local-authority/29UP,Tonbridge & Malling Borough Council,6/23/2021,0021037220/3,21037220, 59.66,KCC - L.A.S.E.R Commercial Services ,00184300,,Electricity,Cemetery,B26MP000021002,
http://statistics.data.gov.uk/id/local-authority/29UP,Tonbridge & Malling Borough Council,6/23/2021,0021037221/3,21037221, 213.95,KCC - L.A.S.E.R Commercial Services ,00184300,,Electricity,Cemetery,B26MP000021002,
http://statistics.data.gov.uk/id/local-authority/29UP,Tonbridge & Malling Borough Council,6/23/2021,0021037222/3,21037222, 432.00,TMS Protection Ltd,01744300,,Gates / Security,Leybourne Lakes Country Park,B22LK000044017,
http://statistics.data.gov.uk/id/local-authority/29UP,Tonbridge & Malling Borough Council,6/23/2021,0021037223/1,21037223, 621.00,Streetmaster (South Wales) Ltd,00222100,,Maintenance of Grounds,Sports Grounds,B13ET000020402,210056241
http://statistics.data.gov.uk/id/local-authority/29UP,Tonbridge & Malling Borough Council,6/23/2021,0021037224/1,21037224, 549.00,Streetmaster (South Wales) Ltd,00222100,,Maintenance of Grounds,Open Spaces & Amenity Areas,B22LE000020402,210056247
http://statistics.data.gov.uk/id/local-authority/29UP,Tonbridge & Malling Borough Council,6/23/2021,0021037225/1,21037225, 63.00,C & J Workwear ,01571300,,Protective Clothing,Haysden Country Park,B22LC000042001,210056284
http://statistics.data.gov.uk/id/local-authority/29UP,Tonbridge & Malling Borough Council,6/23/2021,0021037225/2,21037225, 36.00,C & J Workwear ,01571300,,Protective Clothing,Haysden Country Park,B22LC000042001,210056284
http://statistics.data.gov.uk/id/local-authority/29UP,Tonbridge & Malling Borough Council,6/23/2021,0021037226/1,21037226, 549.00,Streetmaster (South Wales) Ltd,00222100,,Maintenance of Grounds,Sports Grounds,B13ET000020402,210056219
http://statistics.data.gov.uk/id/local-authority/29UP,Tonbridge & Malling Borough Council,6/23/2021,0021037227/1,21037227, 715.00,Streetmaster (South Wales) Ltd,00222100,,Purchases,Open Spaces & Amenity Areas,B22LE000040101,210056238
http://statistics.data.gov.uk/id/local-authority/29UP,Tonbridge & Malling Borough Council,6/23/2021,0021037228/3,21037228, 95.53,KCC - L.A.S.E.R Commercial Services ,00184300,,Electricity,Tonbridge Castle Grounds,B22LB000021002,
http://statistics.data.gov.uk/id/local-authority/29UP,Tonbridge & Malling Borough Council,6/23/2021,0021037229/3,21037229, 44.15,KCC - L.A.S.E.R Commercial Services ,00184300,,Electricity,Leybourne Lakes Country Park,B22LK000021002,
http://statistics.data.gov.uk/id/local-authority/29UP,Tonbridge & Malling Borough Council,6/23/2021,0021037230/1,21037230, 105.76,Landscape Services Ltd,00057600,,Maintenance of Grounds,Sports Grounds,B13ET000020402,210056329
http://statistics.data.gov.uk/id/local-authority/29UP,Tonbridge & Malling Borough Council,6/23/2021,0021037231/1,21037231, 105.76,Landscape Services Ltd,00057600,,Maintenance of Grounds,Sports Grounds,B13ET000020402,210056312
http://statistics.data.gov.uk/id/local-authority/29UP,Tonbridge & Malling Borough Council,6/23/2021,0021037232/1,21037232, 71.00,The Columbaria Company,00023700,,Purchases,Cemetery,B26MP000040101,210056335
http://statistics.data.gov.uk/id/local-authority/29UP,Tonbridge & Malling Borough Council,6/23/2021,0021037233/1,21037233, 71.00,The Columbaria Company,00023700,,Purchases,Cemetery,B26MP000040101,210056336
http://statistics.data.gov.uk/id/local-authority/29UP,Tonbridge & Malling Borough Council,6/23/2021,0021037234/3,21037234, 24.79,B&Q/Screwfix Direct,00141300,,Purchases,Leybourne Lakes Country Park,B22LK000040101,
http://statistics.data.gov.uk/id/local-authority/29UP,Tonbridge & Malling Borough Council,6/23/2021,0021037234/4,21037234, 9.75,B&Q/Screwfix Direct,00141300,,Purchases,Leybourne Lakes Country Park,B22LK000040101,
http://statistics.data.gov.uk/id/local-authority/29UP,Tonbridge & Malling Borough Council,6/23/2021,0021037235/1,21037235, 3200.00,Arnold Tarmac Ltd,01685100,,Maintenance of Grounds,Cemetery,B26MP000020402,210056264
http://statistics.data.gov.uk/id/local-authority/29UP,Tonbridge & Malling Borough Council,6/23/2021,0021037236/1,21037236, 985.00,Arnold Tarmac Ltd,01685100,,Maintenance of Grounds,Haysden Country Park,B22LC000020402,210056320
http://statistics.data.gov.uk/id/local-authority/29UP,Tonbridge & Malling Borough Council,6/23/2021,0021037237/1,21037237, 2000.00,Arnold Tarmac Ltd,01685100,,Maintenance of Grounds,Haysden Country Park,B22LCCARP20402,210056297
http://statistics.data.gov.uk/id/local-authority/29UP,Tonbridge & Malling Borough Council,6/23/2021,0021037238/1,21037238, 800.00,Arnold Tarmac Ltd,01685100,,Maintenance of Grounds,Cemetery,B26MP000020402,210056271
http://statistics.data.gov.uk/id/local-authority/29UP,Tonbridge & Malling Borough Council,6/23/2021,0021037239/1,21037239, 2588.62,Arnold Tarmac Ltd,01685100,,Maintenance of Grounds,Sports Grounds,B13ET000020402,210056265
http://statistics.data.gov.uk/id/local-authority/29UP,Tonbridge & Malling Borough Council,6/23/2021,0021037240/1,21037240, 134.44,Scottish Water Business Stream Ltd,01641100,,Sewerage Charges,Leybourne Lakes Country Park,B22LK000024003,
http://statistics.data.gov.uk/id/local-authority/29UP,Tonbridge & Malling Borough Council,6/23/2021,0021037241/1,21037241, 5100.00,Tonbridge Allotments & Gardens Assoc,01166500,,Management Fee to T A G A,Allotments,B25MK000054006,210056316
http://statistics.data.gov.uk/id/local-authority/29UP,Tonbridge & Malling Borough Council,6/23/2021,0021037242/1,21037242, 432.00,TMS Protection Ltd,01744300,,Gates / Security,Leybourne Lakes Country Park,B22LK000044017,210056332
http://statistics.data.gov.uk/id/local-authority/29UP,Tonbridge & Malling Borough Council,6/23/2021,0021037243/1,21037243, 91.00,The Columbaria Company,00023700,,Purchases,Cemetery,B26MP000040101,210056344
http://statistics.data.gov.uk/id/local-authority/29UP,Tonbridge & Malling Borough Council,6/23/2021,0022025523/3,22025523, 618.75,KH Recruitment Ltd,01738900,,Temporary Staff,St Scene & Leis Sals&Overheads,D01AGDG3011300,
http://statistics.data.gov.uk/id/local-authority/29UP,Tonbridge & Malling Borough Council,6/23/2021,0022025524/3,22025524, 1239.50,Vivid Resourcing,01773700,,Temporary Staff,Env Hlth & Hsg Sals&Overheads,D01AVDV0911300,
http://statistics.data.gov.uk/id/local-authority/29UP,Tonbridge & Malling Borough Council,6/23/2021,0022025525/3,22025525, 740.00,G2 Recruitment Solutions,01786000,,Temporary Staff,Env Hlth & Hsg Sals&Overheads,D01AVDV0711300,
http://statistics.data.gov.uk/id/local-authority/29UP,Tonbridge & Malling Borough Council,6/23/2021,0022025526/1,22025526, 212.50,LA Personal Fitness,01782300,,Healthy Living Initiatives,Public Health - Healthy Living,H40SYVH0048145,220003119
http://statistics.data.gov.uk/id/local-authority/29UP,Tonbridge & Malling Borough Council,6/23/2021,0022025527/3,22025527, 165.00,PMC Polythene Ltd,01016500,,Abatement Initiatives,Street Scene,H23SD000044006,
http://statistics.data.gov.uk/id/local-authority/29UP,Tonbridge & Malling Borough Council,6/23/2021,0022025528/1,22025528, 20.00,Originzone,01799700,,Publicity & Promotion,Dry Recycling,H34SRZ99944217,220003106
http://statistics.data.gov.uk/id/local-authority/29UP,Tonbridge & Malling Borough Council,6/23/2021,0022025528/2,22025528, 1560.00,Originzone,01799700,,Publicity & Promotion,Dry Recycling,H34SRZ99944217,220003106
http://statistics.data.gov.uk/id/local-authority/29UP,Tonbridge & Malling Borough Council,6/23/2021,0022025529/1,22025529, 21.60,Housing Ombudsman Service,01767100,,Subscriptions,Env Hlth & Hsg Sals&Overheads,D01AVDV0747002,
http://statistics.data.gov.uk/id/local-authority/29UP,Tonbridge & Malling Borough Council,6/23/2021,0022025530/1,22025530, 336.88,The East Malling Centre,01168000,,Healthy Living Initiatives,Public Health - Healthy Living,H40SYVH0048145,220003118
http://statistics.data.gov.uk/id/local-authority/29UP,Tonbridge & Malling Borough Council,6/23/2021,0022025531/1,22025531, 165.00,C. S. Mitchell LTD,01704800,,Air Quality Monitoring,Environmental Protection,H32SN000054016,220003066
http://statistics.data.gov.uk/id/local-authority/29UP,Tonbridge & Malling Borough Council,6/23/2021,0022025532/1,22025532, 8500.00,Peabody South East LTD,01680900,,Countywide DFG Project,Private Sector Housing Renewal,C03BD000044031,
http://statistics.data.gov.uk/id/local-authority/29UP,Tonbridge & Malling Borough Council,6/23/2021,0022025533/1,22025533, 390.00,Britains Limited,01743900,,Repairs & Mtce to Buildings,Homelessness,C01AA000020101,220003114
http://statistics.data.gov.uk/id/local-authority/29UP,Tonbridge & Malling Borough Council,6/23/2021,0022025534/1,22025534, 4704.41,Home Adaptations South East LTD,01611500,,Other Expenses,Disabled Facilities Grant Mand,P03AC000009908,
http://statistics.data.gov.uk/id/local-authority/29UP,Tonbridge & Malling Borough Council,6/23/2021,0022025535/1,22025535, 677.44,Peabody South East LTD,01680900,,Other Expenses,Disabled Facilities Grant Mand,P03AC000009908,
http://statistics.data.gov.uk/id/local-authority/29UP,Tonbridge & Malling Borough Council,6/23/2021,0022025536/1,22025536, 3305.00,Higher Elevation LTD,01298700,,Other Expenses,Disabled Facilities Grant Mand,P03AC000009908,
http://statistics.data.gov.uk/id/local-authority/29UP,Tonbridge & Malling Borough Council,6/23/2021,0022025537/1,22025537, 1188.61,Peabody South East LTD,01680900,,Other Expenses,Disabled Facilities Grant Mand,P03AC000009908,
http://statistics.data.gov.uk/id/local-authority/29UP,Tonbridge & Malling Borough Council,6/23/2021,0022025538/1,22025538, 12792.00,Craemer UK LTD,01616400,,Initial Furniture & Equipment,Refuse Bins Growth/Replacement,P02DA000009906,220003110
http://statistics.data.gov.uk/id/local-authority/29UP,Tonbridge & Malling Borough Council,6/23/2021,0031017975/1,31017975, 400.00,Arnold & Court Ltd,01411300,,Repair & Mtce of Fixed Plant,Boro Highways & Emergency Oper,E01AA000020501,310042665
http://statistics.data.gov.uk/id/local-authority/29UP,Tonbridge & Malling Borough Council,6/23/2021,0031017975/2,31017975, 35.00,Arnold & Court Ltd,01411300,,Repair & Mtce of Fixed Plant,Boro Highways & Emergency Oper,E01AA000020501,310042665
http://statistics.data.gov.uk/id/local-authority/29UP,Tonbridge & Malling Borough Council,6/23/2021,0031017976/1,31017976, 720.00,Arnold & Court Ltd,01411300,,Bridge Maintenance,Open Spaces & Amenity Areas,B22LE000020505,210056250
http://statistics.data.gov.uk/id/local-authority/29UP,Tonbridge & Malling Borough Council,6/23/2021,0031017977/1,31017977, 2200.00,Arnold & Court Ltd,01411300,,Contract Payments,TRSG Riverside Rivetment,P05DD000009904,210056207
http://statistics.data.gov.uk/id/local-authority/29UP,Tonbridge & Malling Borough Council,6/23/2021,0031017980/1,31017980, 550.00,Arnold & Court Ltd,01411300,,Maintenance of Grounds,Sports Grounds,B13ET000020402,210056242
http://statistics.data.gov.uk/id/local-authority/29UP,Tonbridge & Malling Borough Council,6/23/2021,0031017992/1,31017992, 200.00,Arnold & Court Ltd,01411300,,Premises Repairs & Maintenance,Parking Off-Street,E10HA000020601,310042656
http://statistics.data.gov.uk/id/local-authority/29UP,Tonbridge & Malling Borough Council,6/23/2021,0031017993/3,31017993, 65.47,Shell U.K. Oil Products Limited,01673300,,"Petrol, Diesel & Oil",Patrolling,B22LF000030106,
http://statistics.data.gov.uk/id/local-authority/29UP,Tonbridge & Malling Borough Council,6/23/2021,0031017993/4,31017993, 149.73,Shell U.K. Oil Products Limited,01673300,,"Petrol, Diesel & Oil",Parking Off-Street,E10HA000030106,
http://statistics.data.gov.uk/id/local-authority/29UP,Tonbridge & Malling Borough Council,6/23/2021,0031017993/5,31017993, 149.72,Shell U.K. Oil Products Limited,01673300,,"Petrol, Diesel & Oil",Parking On-Street,E10HD000030106,
http://statistics.data.gov.uk/id/local-authority/29UP,Tonbridge & Malling Borough Council,6/23/2021,0031017999/3,31017999, 1860.08,CDER Group,01773300,,Adjudication & Enforcement Ser,Parking Off-Street,E10HA000044230,
http://statistics.data.gov.uk/id/local-authority/29UP,Tonbridge & Malling Borough Council,6/23/2021,0031018000/3,31018000, 29.86,Npower Ltd,01675800,,Electricity,Parking Off-Street,E10HA000021002,
http://statistics.data.gov.uk/id/local-authority/29UP,Tonbridge & Malling Borough Council,6/23/2021,0031018001/3,31018001, 56.49,Npower Ltd,01675800,,Electricity,Parking Off-Street,E10HA000021002,
http://statistics.data.gov.uk/id/local-authority/29UP,Tonbridge & Malling Borough Council,6/23/2021,0031018002/3,31018002, 138.91,Npower Ltd,01675800,,Electricity,Parking Off-Street,E10HA000021002,
http://statistics.data.gov.uk/id/local-authority/29UP,Tonbridge & Malling Borough Council,6/23/2021,0032009150/1,32009150, 660.00,G2 Recruitment Solutions,01786000,,Temporary Staff,Planning Sals&Overheads,D01AJDJ0111300,320003308
http://statistics.data.gov.uk/id/local-authority/29UP,Tonbridge & Malling Borough Council,6/23/2021,0032009151/1,32009151, 1720.00,Mott MacDonald,01661000,,H&CG Fund Council Specific,Eco Dev & Reg Gen Bus Support,D52TD000047027,320003311
http://statistics.data.gov.uk/id/local-authority/29UP,Tonbridge & Malling Borough Council,6/23/2021,0041033147/3,41033147, 382.64,Rundle & Co Ltd,00087200,,Bailiffs Commission,Local Revenue & NNDR Collect,D41QA000044075,
http://statistics.data.gov.uk/id/local-authority/29UP,Tonbridge & Malling Borough Council,6/23/2021,0041033148/3,41033148, 437.25,KH Recruitment Ltd,01738900,,Temporary Staff,Finance Sals&Overheads,D01AFDF1111300,
http://statistics.data.gov.uk/id/local-authority/29UP,Tonbridge & Malling Borough Council,6/23/2021,0041033149/1,41033149, 8812.00,Grant Thornton UK LLP,01407400,,Audit Fees,Public Accountability,D29LR000044223,410031807
http://statistics.data.gov.uk/id/local-authority/29UP,Tonbridge & Malling Borough Council,6/23/2021,0041033150/3,41033150, 83.14,Tameside Metropolitan Borough,00770200,,Other Expenses,Finance Sals&Overheads,D01AFDF0648010,
http://statistics.data.gov.uk/id/local-authority/29UP,Tonbridge & Malling Borough Council,6/23/2021,0041033150/4,41033150, 1.30,Tameside Metropolitan Borough,00770200,,Other Expenses,Finance Sals&Overheads,D01AFDF0648010,
http://statistics.data.gov.uk/id/local-authority/29UP,Tonbridge & Malling Borough Council,6/23/2021,0041033151/3,41033151, 1737.48,Maidstone Borough Council,01173700,,Bailiffs Commission,Local Revenue & NNDR Collect,D41QA000044075,
http://statistics.data.gov.uk/id/local-authority/29UP,Tonbridge & Malling Borough Council,6/23/2021,0041033152/3,41033152, 4.28,Rundle & Co Ltd,00087200,,Bailiffs Commission,Local Revenue & NNDR Collect,D41QA000044075,
http://statistics.data.gov.uk/id/local-authority/29UP,Tonbridge & Malling Borough Council,6/23/2021,0041033153/3,41033153, 380.32,Rundle & Co Ltd,00087200,,Bailiffs Commission,Local Revenue & NNDR Collect,D41QA000044075,
http://statistics.data.gov.uk/id/local-authority/29UP,Tonbridge & Malling Borough Council,6/23/2021,0041033160/3,41033160, 888.00,Morgan Hunt UK Ltd,01086900,,Temporary Staff,Finance Sals&Overheads,D01AFDF1111300,
http://statistics.data.gov.uk/id/local-authority/29UP,Tonbridge & Malling Borough Council,6/23/2021,0041033161/3,41033161, 747.83,Morgan Hunt UK Ltd,01086900,,Temporary Staff,Finance Sals&Overheads,D01AFDF1111300,
http://statistics.data.gov.uk/id/local-authority/29UP,Tonbridge & Malling Borough Council,6/23/2021,0041033169/1,41033169, 154.00,Office Furniture Online,01319800,,Purchases,Finance Sals&Overheads,D01AFDF1140101,410031979
http://statistics.data.gov.uk/id/local-authority/29UP,Tonbridge & Malling Borough Council,6/23/2021,0041033177/1,41033177, 532.00,Posturite UK Ltd,00970300,,Purchases,Finance Sals&Overheads,D01AFDF1140101,410031963
http://statistics.data.gov.uk/id/local-authority/29UP,Tonbridge & Malling Borough Council,6/23/2021,0041033177/2,41033177, 79.20,Posturite UK Ltd,00970300,,Purchases,Finance Sals&Overheads,D01AFDF1140101,410031963
http://statistics.data.gov.uk/id/local-authority/29UP,Tonbridge & Malling Borough Council,6/23/2021,0041033177/3,41033177, 24.80,Posturite UK Ltd,00970300,,Purchases,Finance Sals&Overheads,D01AFDF1140101,410031963
http://statistics.data.gov.uk/id/local-authority/29UP,Tonbridge & Malling Borough Council,6/23/2021,0041033177/4,41033177, 28.00,Posturite UK Ltd,00970300,,Purchases,Finance Sals&Overheads,D01AFDF1140101,410031963
http://statistics.data.gov.uk/id/local-authority/29UP,Tonbridge & Malling Borough Council,6/23/2021,0041033177/5,41033177, 35.20,Posturite UK Ltd,00970300,,Purchases,Finance Sals&Overheads,D01AFDF1140101,410031963
http://statistics.data.gov.uk/id/local-authority/29UP,Tonbridge & Malling Borough Council,6/23/2021,0041033177/6,41033177, 21.60,Posturite UK Ltd,00970300,,Purchases,Finance Sals&Overheads,D01AFDF1140101,410031963
http://statistics.data.gov.uk/id/local-authority/29UP,Tonbridge & Malling Borough Council,6/23/2021,0041033177/7,41033177, 21.60,Posturite UK Ltd,00970300,,Purchases,Finance Sals&Overheads,D01AFDF1140101,410031963
http://statistics.data.gov.uk/id/local-authority/29UP,Tonbridge & Malling Borough Council,6/23/2021,0041033177/8,41033177, 35.20,Posturite UK Ltd,00970300,,Purchases,Finance Sals&Overheads,D01AFDF1140101,410031963
http://statistics.data.gov.uk/id/local-authority/29UP,Tonbridge & Malling Borough Council,6/23/2021,0041033177/9,41033177, 44.95,Posturite UK Ltd,00970300,,Purchases,Finance Sals&Overheads,D01AFDF1140101,410031963
http://statistics.data.gov.uk/id/local-authority/29UP,Tonbridge & Malling Borough Council,6/25/2021,0041033181/1,41033181, 36.00,YESpay International Limited,01068000,991280207,Contract Services,Banking Arrangements,D43QK000044005,
http://statistics.data.gov.uk/id/local-authority/29UP,Tonbridge & Malling Borough Council,6/28/2021,0041033184/1,41033184, 15.00,WorldPay ,01568000,,Credit Card Commission,Banking Arrangements,D43QK000044082,
http://statistics.data.gov.uk/id/local-authority/29UP,Tonbridge & Malling Borough Council,6/30/2021,0011042799/3,11042799, 25.58,Veolia ES [UK) Ltd,00020800,,Trade Refuse Charges,Cleaning & Security,D21FD000044008,
http://statistics.data.gov.uk/id/local-authority/29UP,Tonbridge & Malling Borough Council,6/30/2021,0011042823/1,11042823, 336.00,Hadene Engineering Ltd,00041900,,BRREP Gas Soundness Test,Tonbridge Farm Pavillion,M15HGP30001994,110069087
http://statistics.data.gov.uk/id/local-authority/29UP,Tonbridge & Malling Borough Council,6/30/2021,0011042824/1,11042824, 345.00,Hadene Engineering Ltd,00041900,,BRREP Gas Soundness Test,Larkfield Leisure Centre,M15HDP30001994,110069087
http://statistics.data.gov.uk/id/local-authority/29UP,Tonbridge & Malling Borough Council,6/30/2021,0011042825/1,11042825, 435.00,Hadene Engineering Ltd,00041900,,BRREP Gas Soundness Test,Angel Centre,M15HAP30001994,110069087
http://statistics.data.gov.uk/id/local-authority/29UP,Tonbridge & Malling Borough Council,6/30/2021,0011042826/1,11042826, 320.00,Hadene Engineering Ltd,00041900,,BRREP Gas Soundness Test,Tonbridge Swimming Pool,M15HBP30001994,110069087
http://statistics.data.gov.uk/id/local-authority/29UP,Tonbridge & Malling Borough Council,6/30/2021,0011042827/1,11042827, 8800.00,M Jenner & Son,00905500,,BRREP External decoration,Leis Man Poult Wood Golf Centr,M15HEP20001921,110069033
http://statistics.data.gov.uk/id/local-authority/29UP,Tonbridge & Malling Borough Council,6/30/2021,0011042828/1,11042828, 100.00,G C Industrial Heating Services,00578100,,BRREP Response - General,Tonbridge Farm Pavillion,M15HGP50001997,110069075
http://statistics.data.gov.uk/id/local-authority/29UP,Tonbridge & Malling Borough Council,6/30/2021,0011042829/1,11042829, 1095.00,Coolburn Air Conditioning Ltd,01137900,,BRREP Servicing - air handling,Gibson Building West,M15KBP20001936,110068673
http://statistics.data.gov.uk/id/local-authority/29UP,Tonbridge & Malling Borough Council,6/30/2021,0011042830/3,11042830, 407.34,Premier Paper Group,01421800,,Purchases - Paper,Printing,D22GA000040102,
http://statistics.data.gov.uk/id/local-authority/29UP,Tonbridge & Malling Borough Council,6/30/2021,0011042831/3,11042831, 149.22,Premier Paper Group,01421800,,Purchases,Printing,D22GA000040101,
http://statistics.data.gov.uk/id/local-authority/29UP,Tonbridge & Malling Borough Council,6/30/2021,0011042832/3,11042832, 206.50,Chubb Fire & Security Ltd,00115400,174605362,BRREP Servicing-IntruderAlarm,Leis Man Poult Wood Golf Centr,M15HEP20001939,
http://statistics.data.gov.uk/id/local-authority/29UP,Tonbridge & Malling Borough Council,6/30/2021,0011042833/3,11042833, 4179.00,TMS Protection Ltd,01744300,,Re-opening High Streets,Eco Dev & Reg Gen Bus Support,D52TDCV1948076,
http://statistics.data.gov.uk/id/local-authority/29UP,Tonbridge & Malling Borough Council,6/30/2021,0021037244/1,21037244, 1730.00,J P Lennard Ltd,00052900,,Initial Furniture & Equipment,Capital Renewals Leisure,P05KGBC0409906,210056319
http://statistics.data.gov.uk/id/local-authority/29UP,Tonbridge & Malling Borough Council,6/30/2021,0021037244/2,21037244, 37.00,J P Lennard Ltd,00052900,,Initial Furniture & Equipment,Capital Renewals Leisure,P05KGBC0409906,210056319
http://statistics.data.gov.uk/id/local-authority/29UP,Tonbridge & Malling Borough Council,6/30/2021,0021037245/1,21037245, 50.60,J P Lennard Ltd,00052900,,Initial Furniture & Equipment,Capital Renewals Leisure,P05KGBC0409906,210056325
http://statistics.data.gov.uk/id/local-authority/29UP,Tonbridge & Malling Borough Council,6/30/2021,0021037245/2,21037245, 1500.00,J P Lennard Ltd,00052900,,Initial Furniture & Equipment,Capital Renewals Leisure,P05KGBC0409906,210056325
http://statistics.data.gov.uk/id/local-authority/29UP,Tonbridge & Malling Borough Council,6/30/2021,0021037246/1,21037246, 438.00,J P Lennard Ltd,00052900,,Initial Furniture & Equipment,Capital Renewals Leisure,P05KGBC0409906,210056324
http://statistics.data.gov.uk/id/local-authority/29UP,Tonbridge & Malling Borough Council,6/30/2021,0021037247/1,21037247, 349.12,Landscape Services Ltd,00057600,,Grounds Maintenance Contract,Cemetery,B26MP000050103,
http://statistics.data.gov.uk/id/local-authority/29UP,Tonbridge & Malling Borough Council,6/30/2021,0021037248/1,21037248, 67.60,Landscape Services Ltd,00057600,,Maintenance of Grounds,Sports Grounds,B13ET000020402,210056304
http://statistics.data.gov.uk/id/local-authority/29UP,Tonbridge & Malling Borough Council,6/30/2021,0021037249/1,21037249, 26.40,Landscape Services Ltd,00057600,,Grounds Maintenance Contract,Open Spaces & Amenity Areas,B22LE000050103,210056340
http://statistics.data.gov.uk/id/local-authority/29UP,Tonbridge & Malling Borough Council,6/30/2021,0021037249/2,21037249, 1403.20,Landscape Services Ltd,00057600,,Grounds Maintenance Contract,Open Spaces & Amenity Areas,B22LE000050103,210056340
http://statistics.data.gov.uk/id/local-authority/29UP,Tonbridge & Malling Borough Council,6/30/2021,0021037249/3,21037249, 776.80,Landscape Services Ltd,00057600,,Grounds Maintenance Contract,Open Spaces & Amenity Areas,B22LE000050103,210056340
http://statistics.data.gov.uk/id/local-authority/29UP,Tonbridge & Malling Borough Council,6/30/2021,0021037249/4,21037249, 340.60,Landscape Services Ltd,00057600,,Grounds Maintenance Contract,Open Spaces & Amenity Areas,B22LE000050103,210056340
http://statistics.data.gov.uk/id/local-authority/29UP,Tonbridge & Malling Borough Council,6/30/2021,0021037250/1,21037250, 984.09,Landscape Services Ltd,00057600,,Grounds Maintenance Contract,Cemetery,B26MP000050103,
http://statistics.data.gov.uk/id/local-authority/29UP,Tonbridge & Malling Borough Council,6/30/2021,0021037251/1,21037251, 31.65,Sustrans Limited,00128700,,Purchases,Open Spaces & Amenity Areas,B22LE000040101,210056285
http://statistics.data.gov.uk/id/local-authority/29UP,Tonbridge & Malling Borough Council,6/30/2021,0021037252/1,21037252, 432.00,TMS Protection Ltd,01744300,,Gates / Security,Leybourne Lakes Country Park,B22LK000044017,210056332
http://statistics.data.gov.uk/id/local-authority/29UP,Tonbridge & Malling Borough Council,6/30/2021,0021037253/1,21037253, 92.00,Toilets+ Ltd,01039000,,Maintenance of Grounds,Leybourne Lakes Country Park,B22LK000020402,
http://statistics.data.gov.uk/id/local-authority/29UP,Tonbridge & Malling Borough Council,6/30/2021,0021037254/1,21037254, 776.00,Landscape Services Ltd,00057600,,Maintenance of Grounds,Haysden Country Park,B22LC000020402,210056334
http://statistics.data.gov.uk/id/local-authority/29UP,Tonbridge & Malling Borough Council,6/30/2021,0021037255/1,21037255, 368.00,Landscape Services Ltd,00057600,,Maintenance of Grounds,Churchyards St Peter & St Paul,B28MX000020402,210056306
http://statistics.data.gov.uk/id/local-authority/29UP,Tonbridge & Malling Borough Council,6/30/2021,0021037256/1,21037256, 75.80,Homeleigh Building Supplies,00963000,,Maintenance of Grounds,Leybourne Lakes Country Park,B22LK000020402,210056342
http://statistics.data.gov.uk/id/local-authority/29UP,Tonbridge & Malling Borough Council,6/30/2021,0021037257/1,21037257, 191.96,B&Q/Screwfix Direct,00141300,,Maintenance of Grounds,Haysden Country Park,B22LC000020402,
http://statistics.data.gov.uk/id/local-authority/29UP,Tonbridge & Malling Borough Council,6/30/2021,0021037257/2,21037257, 4.17,B&Q/Screwfix Direct,00141300,,Maintenance of Grounds,Haysden Country Park,B22LC000020402,
http://statistics.data.gov.uk/id/local-authority/29UP,Tonbridge & Malling Borough Council,6/30/2021,0021037258/1,21037258, 269.35,B&Q/Screwfix Direct,00141300,,Maintenance of Grounds,Haysden Country Park,B22LC000020402,
http://statistics.data.gov.uk/id/local-authority/29UP,Tonbridge & Malling Borough Council,6/30/2021,0021037259/1,21037259, 644.74,B&Q/Screwfix Direct,00141300,,Maintenance of Grounds,Haysden Country Park,B22LC000020402,
http://statistics.data.gov.uk/id/local-authority/29UP,Tonbridge & Malling Borough Council,6/30/2021,0022025539/1,22025539, 4713.28,Adaptec Mobilty Ltd,01785800,,Other Expenses,Disabled Facilities Grant Mand,P03AC000009908,
http://statistics.data.gov.uk/id/local-authority/29UP,Tonbridge & Malling Borough Council,6/30/2021,0022025540/1,22025540, 678.71,Peabody South East LTD,01680900,,Other Expenses,Disabled Facilities Grant Mand,P03AC000009908,
http://statistics.data.gov.uk/id/local-authority/29UP,Tonbridge & Malling Borough Council,6/30/2021,0022025541/3,22025541, 602.25,KH Recruitment Ltd,01738900,,Temporary Staff,St Scene & Leis Sals&Overheads,D01AGDG3011300,
http://statistics.data.gov.uk/id/local-authority/29UP,Tonbridge & Malling Borough Council,6/30/2021,0022025542/3,22025542, 2.25,REDACTED PERSONAL DATA,01773200,,Repairs & Mtce to Buildings,Homelessness,C01AATNHS20101,
http://statistics.data.gov.uk/id/local-authority/29UP,Tonbridge & Malling Borough Council,6/30/2021,0022025543/1,22025543, 205.00,Imperative Training Ltd,01804900,,Health General,St Scene & Leis Sals&Overheads,D01AG000044049,
http://statistics.data.gov.uk/id/local-authority/29UP,Tonbridge & Malling Borough Council,6/30/2021,0022025544/1,22025544, 6294.10,Coldwell & Shawyer Ltd,01740300,,Other Expenses,Disabled Facilities Grant Mand,P03AC000009908,
http://statistics.data.gov.uk/id/local-authority/29UP,Tonbridge & Malling Borough Council,6/30/2021,0022025545/1,22025545, 906.35,Peabody South East LTD,01680900,,Other Expenses,Disabled Facilities Grant Mand,P03AC000009908,
http://statistics.data.gov.uk/id/local-authority/29UP,Tonbridge & Malling Borough Council,6/30/2021,0022025546/1,22025546, 740.00,G2 Recruitment Solutions,01786000,,Temporary Staff,Env Hlth & Hsg Sals&Overheads,D01AVDV0711300,
http://statistics.data.gov.uk/id/local-authority/29UP,Tonbridge & Malling Borough Council,6/30/2021,0022025547/1,22025547, 1239.50,Vivid Resourcing,01773700,,Temporary Staff,Env Hlth & Hsg Sals&Overheads,D01AVDV0911300,
http://statistics.data.gov.uk/id/local-authority/29UP,Tonbridge & Malling Borough Council,6/30/2021,0022025548/1,22025548, 6.90,KCS,00054200,,Stationery,Env Hlth & Hsg Sals&Overheads,D01AVDV0643003,220003122
http://statistics.data.gov.uk/id/local-authority/29UP,Tonbridge & Malling Borough Council,6/30/2021,0022025549/1,22025549, 4645.60,Countrystyle Group,00835900,781981681,Plastic Recycling,Dry Recycling,H34SR000054019,
http://statistics.data.gov.uk/id/local-authority/29UP,Tonbridge & Malling Borough Council,6/30/2021,0031018009/1,31018009, 286.00,Arnold & Court Ltd,01411300,,Repair & Mtce of Fixed Plant,Boro Highways & Emergency Oper,E01AA000020501,
http://statistics.data.gov.uk/id/local-authority/29UP,Tonbridge & Malling Borough Council,6/30/2021,0031018009/2,31018009, 57.00,Arnold & Court Ltd,01411300,,Winter Maintenance,Parking Off-Street,E10HA000020701,
http://statistics.data.gov.uk/id/local-authority/29UP,Tonbridge & Malling Borough Council,6/30/2021,0031018009/3,31018009, 57.00,Arnold & Court Ltd,01411300,,BRREP General Maintenance,Land Review,M15MAP10001900,
http://statistics.data.gov.uk/id/local-authority/29UP,Tonbridge & Malling Borough Council,6/30/2021,0031018010/1,31018010, 285.30,Arnold & Court Ltd,01411300,,Repair & Mtce of Fixed Plant,Boro Highways & Emergency Oper,E01AA000020501,
http://statistics.data.gov.uk/id/local-authority/29UP,Tonbridge & Malling Borough Council,6/30/2021,0031018010/2,31018010, 77.14,Arnold & Court Ltd,01411300,,Premises Repairs & Maintenance,Parking Off-Street,E10HA000020601,
http://statistics.data.gov.uk/id/local-authority/29UP,Tonbridge & Malling Borough Council,6/30/2021,0031018010/3,31018010, 57.56,Arnold & Court Ltd,01411300,,Winter Maintenance,Parking Off-Street,E10HA000020701,
http://statistics.data.gov.uk/id/local-authority/29UP,Tonbridge & Malling Borough Council,6/30/2021,0031018011/1,31018011, 57.00,Arnold & Court Ltd,01411300,,Repair & Mtce of Fixed Plant,Boro Highways & Emergency Oper,E01AA000020501,
http://statistics.data.gov.uk/id/local-authority/29UP,Tonbridge & Malling Borough Council,6/30/2021,0031018011/2,31018011, 416.00,Arnold & Court Ltd,01411300,,Premises Repairs & Maintenance,Parking Off-Street,E10HA000020601,
http://statistics.data.gov.uk/id/local-authority/29UP,Tonbridge & Malling Borough Council,6/30/2021,0031018012/1,31018012, 443.85,Blue Diamond STL,01298500,,Purchases,Boro Highways & Emergency Oper,E01AA000040101,310042684
http://statistics.data.gov.uk/id/local-authority/29UP,Tonbridge & Malling Borough Council,6/30/2021,0031018014/1,31018014, 80.00,SKF Contractors Ltd,00092000,,Premises Repairs & Maintenance,Parking Off-Street,E10HAE01420601,
http://statistics.data.gov.uk/id/local-authority/29UP,Tonbridge & Malling Borough Council,6/30/2021,0031018016/1,31018016, 224.00,British Parking Association,00380000,,Transport Repair & Maintenance,Parking Off-Street,E10HA000030103,310042669
http://statistics.data.gov.uk/id/local-authority/29UP,Tonbridge & Malling Borough Council,6/30/2021,0031018016/2,31018016, 70.00,British Parking Association,00380000,,Transport Repair & Maintenance,Parking Off-Street,E10HA000030103,310042669
http://statistics.data.gov.uk/id/local-authority/29UP,Tonbridge & Malling Borough Council,6/30/2021,0031018017/1,31018017, 620.00,Arnold & Court Ltd,01411300,,Premises Repairs & Maintenance,Parking Off-Street,E10HA000020601,
http://statistics.data.gov.uk/id/local-authority/29UP,Tonbridge & Malling Borough Council,6/30/2021,0031018018/1,31018018, 340.00,Arnold & Court Ltd,01411300,,Premises Repairs & Maintenance,Parking Off-Street,E10HAE02820601,
http://statistics.data.gov.uk/id/local-authority/29UP,Tonbridge & Malling Borough Council,6/30/2021,0031018018/2,31018018, 170.00,Arnold & Court Ltd,01411300,,Purchases,Parking On-Street,E10HD000040101,
http://statistics.data.gov.uk/id/local-authority/29UP,Tonbridge & Malling Borough Council,6/30/2021,0031018019/1,31018019, 1809.36,G & G Signs,01178400,,Purchases,Boro Highways & Emergency Oper,E01AA000040101,310042683
http://statistics.data.gov.uk/id/local-authority/29UP,Tonbridge & Malling Borough Council,6/30/2021,0031018019/2,31018019, 94.00,G & G Signs,01178400,,Purchases,Boro Highways & Emergency Oper,E01AA000040101,310042683
http://statistics.data.gov.uk/id/local-authority/29UP,Tonbridge & Malling Borough Council,6/30/2021,0031018020/1,31018020, 1832.20,MTS Cleansing Services LTD,01482600,,Premises Repairs & Maintenance,Parking Off-Street,E10HAE00120601,310042678
http://statistics.data.gov.uk/id/local-authority/29UP,Tonbridge & Malling Borough Council,6/30/2021,0031018021/1,31018021, 1841.60,MTS Cleansing Services LTD,01482600,,Premises Repairs & Maintenance,Parking Off-Street,E10HAE00120601,310042677
http://statistics.data.gov.uk/id/local-authority/29UP,Tonbridge & Malling Borough Council,6/30/2021,0032009156/1,32009156, 2282.08,Arcadis Consulting (UK) Limited,01760300,,Professional Fees,Planning Policy,A01AFBORO44001,320003208
http://statistics.data.gov.uk/id/local-authority/29UP,Tonbridge & Malling Borough Council,6/30/2021,0032009157/1,32009157, 11.25,Louise St John Howe,01712800,,Local Dev Framework Expenses,Preparation of Local Dev Frame,A01AE000044023,320003079
http://statistics.data.gov.uk/id/local-authority/29UP,Tonbridge & Malling Borough Council,6/30/2021,0032009158/1,32009158, 59.85,G2 Recruitment Solutions,01786000,,Temporary Staff,Planning Sals&Overheads,D01AJDJ0111300,320003308
http://statistics.data.gov.uk/id/local-authority/29UP,Tonbridge & Malling Borough Council,6/30/2021,0032009159/1,32009159, 205.00,The National Association of Tree Officer,01061200,,Application & Appeals,Development Management,A01AB000044194,320003317
http://statistics.data.gov.uk/id/local-authority/29UP,Tonbridge & Malling Borough Council,6/30/2021,0032009160/1,32009160, 106.15,KCS,00054200,,Stationery,Planning Sals&Overheads,D01AJDJ0143003,320003310
http://statistics.data.gov.uk/id/local-authority/29UP,Tonbridge & Malling Borough Council,6/30/2021,0032009161/1,32009161, 218.61,KM Media Group Ltd,00053900,,Advertising General,Development Management,A01ABZ99944216,310042662
http://statistics.data.gov.uk/id/local-authority/29UP,Tonbridge & Malling Borough Council,6/30/2021,0032009162/1,32009162, 176.97,KM Media Group Ltd,00053900,,Advertising General,Development Management,A01ABZ99944216,320003316
http://statistics.data.gov.uk/id/local-authority/29UP,Tonbridge & Malling Borough Council,6/30/2021,0032009163/1,32009163, 270.66,KM Media Group Ltd,00053900,,Advertising General,Development Management,A01ABZ99944216,310042663
http://statistics.data.gov.uk/id/local-authority/29UP,Tonbridge & Malling Borough Council,6/30/2021,0041033185/3,41033185, 888.00,Morgan Hunt UK Ltd,01086900,,Temporary Staff,Finance Sals&Overheads,D01AFDF1111300,
http://statistics.data.gov.uk/id/local-authority/29UP,Tonbridge & Malling Borough Council,6/30/2021,0041033186/3,41033186, 760.50,Morgan Hunt UK Ltd,01086900,,Temporary Staff,Finance Sals&Overheads,D01AFDF1111300,
http://statistics.data.gov.uk/id/local-authority/29UP,Tonbridge & Malling Borough Council,6/30/2021,0041033187/3,41033187, 807.80,Rundle & Co Ltd,00087200,,Bailiffs Commission,Local Revenue & NNDR Collect,D41QA000044075,
http://statistics.data.gov.uk/id/local-authority/29UP,Tonbridge & Malling Borough Council,6/30/2021,0041033188/3,41033188, 5000.00,Zurich Municipal Managment Services,01094000,,Insurance Employees - General,General Admin Finance,D24GP000013810,
http://statistics.data.gov.uk/id/local-authority/29UP,Tonbridge & Malling Borough Council,6/30/2021,0041033190/1,41033190, 38.34,Contract Security Services Ltd,00964700,,Cash Collection,Haysden Country Park,B22LC000044007,
http://statistics.data.gov.uk/id/local-authority/29UP,Tonbridge & Malling Borough Council,6/30/2021,0041033190/10,41033190, 115.02,Contract Security Services Ltd,00964700,,Cash Collection,Parking Off-Street,E10HAE00144007,
http://statistics.data.gov.uk/id/local-authority/29UP,Tonbridge & Malling Borough Council,6/30/2021,0041033190/11,41033190, 115.02,Contract Security Services Ltd,00964700,,Cash Collection,Parking Off-Street,E10HAE00144007,
http://statistics.data.gov.uk/id/local-authority/29UP,Tonbridge & Malling Borough Council,6/30/2021,0041033190/12,41033190, 115.02,Contract Security Services Ltd,00964700,,Cash Collection,Parking Off-Street,E10HAE00144007,
http://statistics.data.gov.uk/id/local-authority/29UP,Tonbridge & Malling Borough Council,6/30/2021,0041033190/13,41033190, 115.02,Contract Security Services Ltd,00964700,,Cash Collection,Parking Off-Street,E10HAE00144007,
http://statistics.data.gov.uk/id/local-authority/29UP,Tonbridge & Malling Borough Council,6/30/2021,0041033190/14,41033190, 76.68,Contract Security Services Ltd,00964700,,Cash Collection,Parking Off-Street,E10HAE00144007,
http://statistics.data.gov.uk/id/local-authority/29UP,Tonbridge & Malling Borough Council,6/30/2021,0041033190/15,41033190, 19.17,Contract Security Services Ltd,00964700,,Cash Collection,Parking Off-Street,E10HAE00344007,
http://statistics.data.gov.uk/id/local-authority/29UP,Tonbridge & Malling Borough Council,6/30/2021,0041033190/16,41033190, 115.02,Contract Security Services Ltd,00964700,,Cash Collection,Parking Off-Street,E10HAE00444007,
http://statistics.data.gov.uk/id/local-authority/29UP,Tonbridge & Malling Borough Council,6/30/2021,0041033190/17,41033190, 57.51,Contract Security Services Ltd,00964700,,Cash Collection,Parking Off-Street,E10HAE00444007,
http://statistics.data.gov.uk/id/local-authority/29UP,Tonbridge & Malling Borough Council,6/30/2021,0041033190/18,41033190, 115.02,Contract Security Services Ltd,00964700,,Cash Collection,Parking Off-Street,E10HAE00444007,
http://statistics.data.gov.uk/id/local-authority/29UP,Tonbridge & Malling Borough Council,6/30/2021,0041033190/19,41033190, 115.02,Contract Security Services Ltd,00964700,,Cash Collection,Parking Off-Street,E10HAE00444007,
http://statistics.data.gov.uk/id/local-authority/29UP,Tonbridge & Malling Borough Council,6/30/2021,0041033190/2,41033190, 38.34,Contract Security Services Ltd,00964700,,Cash Collection,Haysden Country Park,B22LC000044007,
http://statistics.data.gov.uk/id/local-authority/29UP,Tonbridge & Malling Borough Council,6/30/2021,0041033190/20,41033190, 76.68,Contract Security Services Ltd,00964700,,Cash Collection,Parking Off-Street,E10HAE00544007,
http://statistics.data.gov.uk/id/local-authority/29UP,Tonbridge & Malling Borough Council,6/30/2021,0041033190/21,41033190, 76.68,Contract Security Services Ltd,00964700,,Cash Collection,Parking Off-Street,E10HAE00544007,
http://statistics.data.gov.uk/id/local-authority/29UP,Tonbridge & Malling Borough Council,6/30/2021,0041033190/22,41033190, 9.59,Contract Security Services Ltd,00964700,,Cash Collection,Parking Off-Street,E10HAE00644007,
http://statistics.data.gov.uk/id/local-authority/29UP,Tonbridge & Malling Borough Council,6/30/2021,0041033190/23,41033190, 9.59,Contract Security Services Ltd,00964700,,Cash Collection,Parking Off-Street,E10HAE00644007,
http://statistics.data.gov.uk/id/local-authority/29UP,Tonbridge & Malling Borough Council,6/30/2021,0041033190/24,41033190, 57.51,Contract Security Services Ltd,00964700,,Cash Collection,Parking Off-Street,E10HAE01144007,
http://statistics.data.gov.uk/id/local-authority/29UP,Tonbridge & Malling Borough Council,6/30/2021,0041033190/25,41033190, 19.17,Contract Security Services Ltd,00964700,,Cash Collection,Parking Off-Street,E10HAE01244007,
http://statistics.data.gov.uk/id/local-authority/29UP,Tonbridge & Malling Borough Council,6/30/2021,0041033190/26,41033190, 115.02,Contract Security Services Ltd,00964700,,Cash Collection,Parking Off-Street,E10HAE01344007,
http://statistics.data.gov.uk/id/local-authority/29UP,Tonbridge & Malling Borough Council,6/30/2021,0041033190/27,41033190, 115.02,Contract Security Services Ltd,00964700,,Cash Collection,Parking Off-Street,E10HAE01344007,
http://statistics.data.gov.uk/id/local-authority/29UP,Tonbridge & Malling Borough Council,6/30/2021,0041033190/28,41033190, 19.17,Contract Security Services Ltd,00964700,,Cash Collection,Parking Off-Street,E10HAE01444007,
http://statistics.data.gov.uk/id/local-authority/29UP,Tonbridge & Malling Borough Council,6/30/2021,0041033190/29,41033190, 57.51,Contract Security Services Ltd,00964700,,Cash Collection,Parking Off-Street,E10HAE01744007,
http://statistics.data.gov.uk/id/local-authority/29UP,Tonbridge & Malling Borough Council,6/30/2021,0041033190/3,41033190, 19.17,Contract Security Services Ltd,00964700,,Cash Collection,Haysden Country Park,B22LC000044007,
http://statistics.data.gov.uk/id/local-authority/29UP,Tonbridge & Malling Borough Council,6/30/2021,0041033190/30,41033190, 57.51,Contract Security Services Ltd,00964700,,Cash Collection,Parking Off-Street,E10HAE01744007,
http://statistics.data.gov.uk/id/local-authority/29UP,Tonbridge & Malling Borough Council,6/30/2021,0041033190/31,41033190, 19.17,Contract Security Services Ltd,00964700,,Cash Collection,Parking Off-Street,E10HAE02044007,
http://statistics.data.gov.uk/id/local-authority/29UP,Tonbridge & Malling Borough Council,6/30/2021,0041033190/32,41033190, 57.51,Contract Security Services Ltd,00964700,,Cash Collection,Parking Off-Street,E10HAE02244007,
http://statistics.data.gov.uk/id/local-authority/29UP,Tonbridge & Malling Borough Council,6/30/2021,0041033190/33,41033190, 115.02,Contract Security Services Ltd,00964700,,Cash Collection,Parking Off-Street,E10HAE02344007,
http://statistics.data.gov.uk/id/local-authority/29UP,Tonbridge & Malling Borough Council,6/30/2021,0041033190/34,41033190, 115.02,Contract Security Services Ltd,00964700,,Cash Collection,Parking Off-Street,E10HAE02344007,
http://statistics.data.gov.uk/id/local-authority/29UP,Tonbridge & Malling Borough Council,6/30/2021,0041033190/35,41033190, 57.51,Contract Security Services Ltd,00964700,,Cash Collection,Parking Off-Street,E10HAE04544007,
http://statistics.data.gov.uk/id/local-authority/29UP,Tonbridge & Malling Borough Council,6/30/2021,0041033190/36,41033190, 38.34,Contract Security Services Ltd,00964700,,Cash Collection,Parking Off-Street,E10HAE04544007,
http://statistics.data.gov.uk/id/local-authority/29UP,Tonbridge & Malling Borough Council,6/30/2021,0041033190/37,41033190, 4.79,Contract Security Services Ltd,00964700,,Cash Collection,Parking On-Street,E10HD000044007,
http://statistics.data.gov.uk/id/local-authority/29UP,Tonbridge & Malling Borough Council,6/30/2021,0041033190/38,41033190, 4.79,Contract Security Services Ltd,00964700,,Cash Collection,Parking On-Street,E10HD000044007,
http://statistics.data.gov.uk/id/local-authority/29UP,Tonbridge & Malling Borough Council,6/30/2021,0041033190/39,41033190, 4.79,Contract Security Services Ltd,00964700,,Cash Collection,Parking On-Street,E10HD000044007,
http://statistics.data.gov.uk/id/local-authority/29UP,Tonbridge & Malling Borough Council,6/30/2021,0041033190/4,41033190, 38.34,Contract Security Services Ltd,00964700,,Cash Collection,Leybourne Lakes Country Park,B22LK000044007,
http://statistics.data.gov.uk/id/local-authority/29UP,Tonbridge & Malling Borough Council,6/30/2021,0041033190/40,41033190, 4.79,Contract Security Services Ltd,00964700,,Cash Collection,Parking On-Street,E10HD000044007,
http://statistics.data.gov.uk/id/local-authority/29UP,Tonbridge & Malling Borough Council,6/30/2021,0041033190/41,41033190, 19.17,Contract Security Services Ltd,00964700,,Cash Collection,Parking On-Street,E10HD000044007,
http://statistics.data.gov.uk/id/local-authority/29UP,Tonbridge & Malling Borough Council,6/30/2021,0041033190/42,41033190, 19.17,Contract Security Services Ltd,00964700,,Cash Collection,Parking On-Street,E10HD000044007,
http://statistics.data.gov.uk/id/local-authority/29UP,Tonbridge & Malling Borough Council,6/30/2021,0041033190/43,41033190, 19.17,Contract Security Services Ltd,00964700,,Cash Collection,Parking On-Street,E10HD000044007,
http://statistics.data.gov.uk/id/local-authority/29UP,Tonbridge & Malling Borough Council,6/30/2021,0041033190/44,41033190, 19.17,Contract Security Services Ltd,00964700,,Cash Collection,Parking On-Street,E10HD000044007,
http://statistics.data.gov.uk/id/local-authority/29UP,Tonbridge & Malling Borough Council,6/30/2021,0041033190/5,41033190, 38.34,Contract Security Services Ltd,00964700,,Cash Collection,Leybourne Lakes Country Park,B22LK000044007,
http://statistics.data.gov.uk/id/local-authority/29UP,Tonbridge & Malling Borough Council,6/30/2021,0041033190/6,41033190, 115.02,Contract Security Services Ltd,00964700,,Cash Collection,Parking Off-Street,E10HAE00144007,
http://statistics.data.gov.uk/id/local-authority/29UP,Tonbridge & Malling Borough Council,6/30/2021,0041033190/7,41033190, 115.02,Contract Security Services Ltd,00964700,,Cash Collection,Parking Off-Street,E10HAE00144007,
http://statistics.data.gov.uk/id/local-authority/29UP,Tonbridge & Malling Borough Council,6/30/2021,0041033190/8,41033190, 115.02,Contract Security Services Ltd,00964700,,Cash Collection,Parking Off-Street,E10HAE00144007,
http://statistics.data.gov.uk/id/local-authority/29UP,Tonbridge & Malling Borough Council,6/30/2021,0041033190/9,41033190, 115.02,Contract Security Services Ltd,00964700,,Cash Collection,Parking Off-Street,E10HAE00144007,
